{"text_format":"1","workbook":"xlsx","n_sheets":2,"sheets":["CONTROLE DE COLABORADORES","CONTROLE DE MATERIAL"],"not_rendered":{"charts":0,"images":2,"macros":1,"external_links":0,"defined_names":1,"comments":1,"pivot_tables":0},"unopened":[],"bounds":{"document_bytes":16777216,"sheet_cells":100000,"rows_first":2000,"rows_last":500,"rows_between":2000,"halvings":0,"cell_chars":16384,"cell_head_chars":4096},"cells_cut":0,"cells_raw":0,"read":"whole","date_system":"1900"}

{"sheet":"CONTROLE DE COLABORADORES","index":0,"n_rows":52,"n_cols":23,"rows_kept":52,"cut":false,"hidden":false,"merged":[[0,12,0,16],[0,17,0,22],[0,0,0,11]]}
["DADOS COLABORADORES AUTONOMOS",null,null,null,null,null,null,null,null,null,null,null,"CONFERÊNCIA ",null,null,null,null,"FORMULAS DE APOIO"]
["NOME","CPF","FUNÇÃO","DATA \nINICIAL","DATA FINAL","DIÁRIAS","VALOR \nUNITARIO","VALOR BRUTO DO PRESTADOR","CUSTO DE 20% - INSS PATRONAL","CUSTO DO PRESTADOR PARA A FEDERAÇÃO","MODALIDADE","EVENTO","FC","AE","AC/LC","REL","PRAZO","Obs FC","Obs AE","Obs AC","Obs Relatorio","Obs Final","MÊS ATUAL"]
[null,null,null,null,null,null,null,{"$f":"IFERROR(RPA_FUER[[#This Row],[DIÁRIAS]]*RPA_FUER[[#This Row],[VALOR \nUNITARIO]],\" \")","v":0},{"$f":"IFERROR('CONTROLE DE COLABORADORES'!$H3*0.2,\"\")","v":0},{"$f":"IFERROR('CONTROLE DE COLABORADORES'!$H3+'CONTROLE DE COLABORADORES'!$I3,\"\")","v":0},null,null,null,null,null,null,{"$f":"IF(RPA_FUER[[#This Row],[Obs Final]]<>\"\",\"CONCLUIDO\",IF(OR(RPA_FUER[[#This Row],[MÊS ATUAL]]=MONTH(TODAY()),RPA_FUER[[#This Row],[MÊS ATUAL]]<MONTH(TODAY())),\"CONFERIR\",\"DENTRO DO PRAZO\"))","v":"CONFERIR"},{"$f":"IF(RPA_FUER[[#This Row],[FC]]=\"\",\"ENVIO DA FICHA CADASTRAL PENDENTE; \",\"\")","v":"ENVIO DA FICHA CADASTRAL PENDENTE; "},{"$f":"IF(RPA_FUER[[#This Row],[AE]]=\"\",\"ENVIO DA AUTODECLARAÇÃO DE ESCOLARIDADE E RAÇA PENDENTE; \",\"\")","v":"ENVIO DA AUTODECLARAÇÃO DE ESCOLARIDADE E RAÇA PENDENTE; "},{"$f":"IF(RPA_FUER[[#This Row],[AC/LC]]=\"\",\"ENVIO DA AUTODECLARAÇÃO DE CARGO PENDENTE; \",\"\")","v":"ENVIO DA AUTODECLARAÇÃO DE CARGO PENDENTE; "},{"$f":"IF(RPA_FUER[[#This Row],[REL]]=\"\",\"ENVIO DO RELATÓRIO PENDENTE. \",\"\")","v":"ENVIO DO RELATÓRIO PENDENTE. "},{"$f":"IF(AND(RPA_FUER[[#This Row],[FC]]=\"a\",RPA_FUER[[#This Row],[AE]]=\"a\",RPA_FUER[[#This Row],[AC/LC]]=\"a\",RPA_FUER[[#This Row],[REL]]=\"a\"),\"COLABORADOR APTO PARA PAGAMENTO\",\"\")","v":""},{"$f":"MONTH(RPA_FUER[[#This Row],[DATA FINAL]])","v":1}]
[null,null,null,null,null,null,null,{"$f":"IFERROR(RPA_FUER[[#This Row],[DIÁRIAS]]*RPA_FUER[[#This Row],[VALOR \nUNITARIO]],\" \")","v":0},{"$f":"IFERROR('CONTROLE DE COLABORADORES'!$H4*0.2,\"\")","v":0},{"$f":"IFERROR('CONTROLE DE COLABORADORES'!$H4+'CONTROLE DE COLABORADORES'!$I4,\"\")","v":0},null,null,null,null,null,null,{"$f":"IF(RPA_FUER[[#This Row],[Obs Final]]<>\"\",\"CONCLUIDO\",IF(OR(RPA_FUER[[#This Row],[MÊS ATUAL]]=MONTH(TODAY()),RPA_FUER[[#This Row],[MÊS ATUAL]]<MONTH(TODAY())),\"CONFERIR\",\"DENTRO DO PRAZO\"))","v":"CONFERIR"},{"$f":"IF(RPA_FUER[[#This Row],[FC]]=\"\",\"ENVIO DA FICHA CADASTRAL PENDENTE; \",\"\")","v":"ENVIO DA FICHA CADASTRAL PENDENTE; "},{"$f":"IF(RPA_FUER[[#This Row],[AE]]=\"\",\"ENVIO DA AUTODECLARAÇÃO DE ESCOLARIDADE E RAÇA PENDENTE; \",\"\")","v":"ENVIO DA AUTODECLARAÇÃO DE ESCOLARIDADE E RAÇA PENDENTE; "},{"$f":"IF(RPA_FUER[[#This Row],[AC/LC]]=\"\",\"ENVIO DA AUTODECLARAÇÃO DE CARGO PENDENTE; \",\"\")","v":"ENVIO DA AUTODECLARAÇÃO DE CARGO PENDENTE; "},{"$f":"IF(RPA_FUER[[#This Row],[REL]]=\"\",\"ENVIO DO RELATÓRIO PENDENTE. \",\"\")","v":"ENVIO DO RELATÓRIO PENDENTE. "},{"$f":"IF(AND(RPA_FUER[[#This Row],[FC]]=\"a\",RPA_FUER[[#This Row],[AE]]=\"a\",RPA_FUER[[#This Row],[AC/LC]]=\"a\",RPA_FUER[[#This Row],[REL]]=\"a\"),\"COLABORADOR APTO PARA PAGAMENTO\",\"\")","v":""},{"$f":"MONTH(RPA_FUER[[#This Row],[DATA FINAL]])","v":1}]
[null,null,null,null,null,null,null,{"$f":"IFERROR(RPA_FUER[[#This Row],[DIÁRIAS]]*RPA_FUER[[#This Row],[VALOR \nUNITARIO]],\" \")","v":0},{"$f":"IFERROR('CONTROLE DE COLABORADORES'!$H5*0.2,\"\")","v":0},{"$f":"IFERROR('CONTROLE DE COLABORADORES'!$H5+'CONTROLE DE COLABORADORES'!$I5,\"\")","v":0},null,null,null,null,null,null,{"$f":"IF(RPA_FUER[[#This Row],[Obs Final]]<>\"\",\"CONCLUIDO\",IF(OR(RPA_FUER[[#This Row],[MÊS ATUAL]]=MONTH(TODAY()),RPA_FUER[[#This Row],[MÊS ATUAL]]<MONTH(TODAY())),\"CONFERIR\",\"DENTRO DO PRAZO\"))","v":"CONFERIR"},{"$f":"IF(RPA_FUER[[#This Row],[FC]]=\"\",\"ENVIO DA FICHA CADASTRAL PENDENTE; \",\"\")","v":"ENVIO DA FICHA CADASTRAL PENDENTE; "},{"$f":"IF(RPA_FUER[[#This Row],[AE]]=\"\",\"ENVIO DA AUTODECLARAÇÃO DE ESCOLARIDADE E RAÇA PENDENTE; \",\"\")","v":"ENVIO DA AUTODECLARAÇÃO DE ESCOLARIDADE E RAÇA PENDENTE; "},{"$f":"IF(RPA_FUER[[#This Row],[AC/LC]]=\"\",\"ENVIO DA AUTODECLARAÇÃO DE CARGO PENDENTE; \",\"\")","v":"ENVIO DA AUTODECLARAÇÃO DE CARGO PENDENTE; "},{"$f":"IF(RPA_FUER[[#This Row],[REL]]=\"\",\"ENVIO DO RELATÓRIO PENDENTE. \",\"\")","v":"ENVIO DO RELATÓRIO PENDENTE. "},{"$f":"IF(AND(RPA_FUER[[#This Row],[FC]]=\"a\",RPA_FUER[[#This Row],[AE]]=\"a\",RPA_FUER[[#This Row],[AC/LC]]=\"a\",RPA_FUER[[#This Row],[REL]]=\"a\"),\"COLABORADOR APTO PARA PAGAMENTO\",\"\")","v":""},{"$f":"MONTH(RPA_FUER[[#This Row],[DATA FINAL]])","v":1}]
[null,null,null,null,null,null,null,{"$f":"IFERROR(RPA_FUER[[#This Row],[DIÁRIAS]]*RPA_FUER[[#This Row],[VALOR \nUNITARIO]],\" \")","v":0},{"$f":"IFERROR('CONTROLE DE COLABORADORES'!$H6*0.2,\"\")","v":0},{"$f":"IFERROR('CONTROLE DE COLABORADORES'!$H6+'CONTROLE DE COLABORADORES'!$I6,\"\")","v":0},null,null,null,null,null,null,{"$f":"IF(RPA_FUER[[#This Row],[Obs Final]]<>\"\",\"CONCLUIDO\",IF(OR(RPA_FUER[[#This Row],[MÊS ATUAL]]=MONTH(TODAY()),RPA_FUER[[#This Row],[MÊS ATUAL]]<MONTH(TODAY())),\"CONFERIR\",\"DENTRO DO PRAZO\"))","v":"CONFERIR"},{"$f":"IF(RPA_FUER[[#This Row],[FC]]=\"\",\"ENVIO DA FICHA CADASTRAL PENDENTE; \",\"\")","v":"ENVIO DA FICHA CADASTRAL PENDENTE; "},{"$f":"IF(RPA_FUER[[#This Row],[AE]]=\"\",\"ENVIO DA AUTODECLARAÇÃO DE ESCOLARIDADE E RAÇA PENDENTE; \",\"\")","v":"ENVIO DA AUTODECLARAÇÃO DE ESCOLARIDADE E RAÇA PENDENTE; "},{"$f":"IF(RPA_FUER[[#This Row],[AC/LC]]=\"\",\"ENVIO DA AUTODECLARAÇÃO DE CARGO PENDENTE; \",\"\")","v":"ENVIO DA AUTODECLARAÇÃO DE CARGO PENDENTE; "},{"$f":"IF(RPA_FUER[[#This Row],[REL]]=\"\",\"ENVIO DO RELATÓRIO PENDENTE. \",\"\")","v":"ENVIO DO RELATÓRIO PENDENTE. "},{"$f":"IF(AND(RPA_FUER[[#This Row],[FC]]=\"a\",RPA_FUER[[#This Row],[AE]]=\"a\",RPA_FUER[[#This Row],[AC/LC]]=\"a\",RPA_FUER[[#This Row],[REL]]=\"a\"),\"COLABORADOR APTO PARA PAGAMENTO\",\"\")","v":""},{"$f":"MONTH(RPA_FUER[[#This Row],[DATA FINAL]])","v":1}]
[null,null,null,null,null,null,null,{"$f":"IFERROR(RPA_FUER[[#This Row],[DIÁRIAS]]*RPA_FUER[[#This Row],[VALOR \nUNITARIO]],\" \")","v":0},{"$f":"IFERROR('CONTROLE DE COLABORADORES'!$H7*0.2,\"\")","v":0},{"$f":"IFERROR('CONTROLE DE COLABORADORES'!$H7+'CONTROLE DE COLABORADORES'!$I7,\"\")","v":0},null,null,null,null,null,null,{"$f":"IF(RPA_FUER[[#This Row],[Obs Final]]<>\"\",\"CONCLUIDO\",IF(OR(RPA_FUER[[#This Row],[MÊS ATUAL]]=MONTH(TODAY()),RPA_FUER[[#This Row],[MÊS ATUAL]]<MONTH(TODAY())),\"CONFERIR\",\"DENTRO DO PRAZO\"))","v":"CONFERIR"},{"$f":"IF(RPA_FUER[[#This Row],[FC]]=\"\",\"ENVIO DA FICHA CADASTRAL PENDENTE; \",\"\")","v":"ENVIO DA FICHA CADASTRAL PENDENTE; "},{"$f":"IF(RPA_FUER[[#This Row],[AE]]=\"\",\"ENVIO DA AUTODECLARAÇÃO DE ESCOLARIDADE E RAÇA PENDENTE; \",\"\")","v":"ENVIO DA AUTODECLARAÇÃO DE ESCOLARIDADE E RAÇA PENDENTE; "},{"$f":"IF(RPA_FUER[[#This Row],[AC/LC]]=\"\",\"ENVIO DA AUTODECLARAÇÃO DE CARGO PENDENTE; \",\"\")","v":"ENVIO DA AUTODECLARAÇÃO DE CARGO PENDENTE; "},{"$f":"IF(RPA_FUER[[#This Row],[REL]]=\"\",\"ENVIO DO RELATÓRIO PENDENTE. \",\"\")","v":"ENVIO DO RELATÓRIO PENDENTE. "},{"$f":"IF(AND(RPA_FUER[[#This Row],[FC]]=\"a\",RPA_FUER[[#This Row],[AE]]=\"a\",RPA_FUER[[#This Row],[AC/LC]]=\"a\",RPA_FUER[[#This Row],[REL]]=\"a\"),\"COLABORADOR APTO PARA PAGAMENTO\",\"\")","v":""},{"$f":"MONTH(RPA_FUER[[#This Row],[DATA FINAL]])","v":1}]
[null,null,null,null,null,null,null,{"$f":"IFERROR(RPA_FUER[[#This Row],[DIÁRIAS]]*RPA_FUER[[#This Row],[VALOR \nUNITARIO]],\" \")","v":0},{"$f":"IFERROR('CONTROLE DE COLABORADORES'!$H8*0.2,\"\")","v":0},{"$f":"IFERROR('CONTROLE DE COLABORADORES'!$H8+'CONTROLE DE COLABORADORES'!$I8,\"\")","v":0},null,null,null,null,null,null,{"$f":"IF(RPA_FUER[[#This Row],[Obs Final]]<>\"\",\"CONCLUIDO\",IF(OR(RPA_FUER[[#This Row],[MÊS ATUAL]]=MONTH(TODAY()),RPA_FUER[[#This Row],[MÊS ATUAL]]<MONTH(TODAY())),\"CONFERIR\",\"DENTRO DO PRAZO\"))","v":"CONFERIR"},{"$f":"IF(RPA_FUER[[#This Row],[FC]]=\"\",\"ENVIO DA FICHA CADASTRAL PENDENTE; \",\"\")","v":"ENVIO DA FICHA CADASTRAL PENDENTE; "},{"$f":"IF(RPA_FUER[[#This Row],[AE]]=\"\",\"ENVIO DA AUTODECLARAÇÃO DE ESCOLARIDADE E RAÇA PENDENTE; \",\"\")","v":"ENVIO DA AUTODECLARAÇÃO DE ESCOLARIDADE E RAÇA PENDENTE; "},{"$f":"IF(RPA_FUER[[#This Row],[AC/LC]]=\"\",\"ENVIO DA AUTODECLARAÇÃO DE CARGO PENDENTE; \",\"\")","v":"ENVIO DA AUTODECLARAÇÃO DE CARGO PENDENTE; "},{"$f":"IF(RPA_FUER[[#This Row],[REL]]=\"\",\"ENVIO DO RELATÓRIO PENDENTE. \",\"\")","v":"ENVIO DO RELATÓRIO PENDENTE. "},{"$f":"IF(AND(RPA_FUER[[#This Row],[FC]]=\"a\",RPA_FUER[[#This Row],[AE]]=\"a\",RPA_FUER[[#This Row],[AC/LC]]=\"a\",RPA_FUER[[#This Row],[REL]]=\"a\"),\"COLABORADOR APTO PARA PAGAMENTO\",\"\")","v":""},{"$f":"MONTH(RPA_FUER[[#This Row],[DATA FINAL]])","v":1}]
[null,null,null,null,null,null,null,{"$f":"IFERROR(RPA_FUER[[#This Row],[DIÁRIAS]]*RPA_FUER[[#This Row],[VALOR \nUNITARIO]],\" \")","v":0},{"$f":"IFERROR('CONTROLE DE COLABORADORES'!$H9*0.2,\"\")","v":0},{"$f":"IFERROR('CONTROLE DE COLABORADORES'!$H9+'CONTROLE DE COLABORADORES'!$I9,\"\")","v":0},null,null,null,null,null,null,{"$f":"IF(RPA_FUER[[#This Row],[Obs Final]]<>\"\",\"CONCLUIDO\",IF(OR(RPA_FUER[[#This Row],[MÊS ATUAL]]=MONTH(TODAY()),RPA_FUER[[#This Row],[MÊS ATUAL]]<MONTH(TODAY())),\"CONFERIR\",\"DENTRO DO PRAZO\"))","v":"CONFERIR"},{"$f":"IF(RPA_FUER[[#This Row],[FC]]=\"\",\"ENVIO DA FICHA CADASTRAL PENDENTE; \",\"\")","v":"ENVIO DA FICHA CADASTRAL PENDENTE; "},{"$f":"IF(RPA_FUER[[#This Row],[AE]]=\"\",\"ENVIO DA AUTODECLARAÇÃO DE ESCOLARIDADE E RAÇA PENDENTE; \",\"\")","v":"ENVIO DA AUTODECLARAÇÃO DE ESCOLARIDADE E RAÇA PENDENTE; "},{"$f":"IF(RPA_FUER[[#This Row],[AC/LC]]=\"\",\"ENVIO DA AUTODECLARAÇÃO DE CARGO PENDENTE; \",\"\")","v":"ENVIO DA AUTODECLARAÇÃO DE CARGO PENDENTE; "},{"$f":"IF(RPA_FUER[[#This Row],[REL]]=\"\",\"ENVIO DO RELATÓRIO PENDENTE. \",\"\")","v":"ENVIO DO RELATÓRIO PENDENTE. "},{"$f":"IF(AND(RPA_FUER[[#This Row],[FC]]=\"a\",RPA_FUER[[#This Row],[AE]]=\"a\",RPA_FUER[[#This Row],[AC/LC]]=\"a\",RPA_FUER[[#This Row],[REL]]=\"a\"),\"COLABORADOR APTO PARA PAGAMENTO\",\"\")","v":""},{"$f":"MONTH(RPA_FUER[[#This Row],[DATA FINAL]])","v":1}]
[null,null,null,null,null,null,null,{"$f":"IFERROR(RPA_FUER[[#This Row],[DIÁRIAS]]*RPA_FUER[[#This Row],[VALOR \nUNITARIO]],\" \")","v":0},{"$f":"IFERROR('CONTROLE DE COLABORADORES'!$H10*0.2,\"\")","v":0},{"$f":"IFERROR('CONTROLE DE COLABORADORES'!$H10+'CONTROLE DE COLABORADORES'!$I10,\"\")","v":0},null,null,null,null,null,null,{"$f":"IF(RPA_FUER[[#This Row],[Obs Final]]<>\"\",\"CONCLUIDO\",IF(OR(RPA_FUER[[#This Row],[MÊS ATUAL]]=MONTH(TODAY()),RPA_FUER[[#This Row],[MÊS ATUAL]]<MONTH(TODAY())),\"CONFERIR\",\"DENTRO DO PRAZO\"))","v":"CONFERIR"},{"$f":"IF(RPA_FUER[[#This Row],[FC]]=\"\",\"ENVIO DA FICHA CADASTRAL PENDENTE; \",\"\")","v":"ENVIO DA FICHA CADASTRAL PENDENTE; "},{"$f":"IF(RPA_FUER[[#This Row],[AE]]=\"\",\"ENVIO DA AUTODECLARAÇÃO DE ESCOLARIDADE E RAÇA PENDENTE; \",\"\")","v":"ENVIO DA AUTODECLARAÇÃO DE ESCOLARIDADE E RAÇA PENDENTE; "},{"$f":"IF(RPA_FUER[[#This Row],[AC/LC]]=\"\",\"ENVIO DA AUTODECLARAÇÃO DE CARGO PENDENTE; \",\"\")","v":"ENVIO DA AUTODECLARAÇÃO DE CARGO PENDENTE; "},{"$f":"IF(RPA_FUER[[#This Row],[REL]]=\"\",\"ENVIO DO RELATÓRIO PENDENTE. \",\"\")","v":"ENVIO DO RELATÓRIO PENDENTE. "},{"$f":"IF(AND(RPA_FUER[[#This Row],[FC]]=\"a\",RPA_FUER[[#This Row],[AE]]=\"a\",RPA_FUER[[#This Row],[AC/LC]]=\"a\",RPA_FUER[[#This Row],[REL]]=\"a\"),\"COLABORADOR APTO PARA PAGAMENTO\",\"\")","v":""},{"$f":"MONTH(RPA_FUER[[#This Row],[DATA FINAL]])","v":1}]
[null,null,null,null,null,null,null,{"$f":"IFERROR(RPA_FUER[[#This Row],[DIÁRIAS]]*RPA_FUER[[#This Row],[VALOR \nUNITARIO]],\" \")","v":0},{"$f":"IFERROR('CONTROLE DE COLABORADORES'!$H11*0.2,\"\")","v":0},{"$f":"IFERROR('CONTROLE DE COLABORADORES'!$H11+'CONTROLE DE COLABORADORES'!$I11,\"\")","v":0},null,null,null,null,null,null,{"$f":"IF(RPA_FUER[[#This Row],[Obs Final]]<>\"\",\"CONCLUIDO\",IF(OR(RPA_FUER[[#This Row],[MÊS ATUAL]]=MONTH(TODAY()),RPA_FUER[[#This Row],[MÊS ATUAL]]<MONTH(TODAY())),\"CONFERIR\",\"DENTRO DO PRAZO\"))","v":"CONFERIR"},{"$f":"IF(RPA_FUER[[#This Row],[FC]]=\"\",\"ENVIO DA FICHA CADASTRAL PENDENTE; \",\"\")","v":"ENVIO DA FICHA CADASTRAL PENDENTE; "},{"$f":"IF(RPA_FUER[[#This Row],[AE]]=\"\",\"ENVIO DA AUTODECLARAÇÃO DE ESCOLARIDADE E RAÇA PENDENTE; \",\"\")","v":"ENVIO DA AUTODECLARAÇÃO DE ESCOLARIDADE E RAÇA PENDENTE; "},{"$f":"IF(RPA_FUER[[#This Row],[AC/LC]]=\"\",\"ENVIO DA AUTODECLARAÇÃO DE CARGO PENDENTE; \",\"\")","v":"ENVIO DA AUTODECLARAÇÃO DE CARGO PENDENTE; "},{"$f":"IF(RPA_FUER[[#This Row],[REL]]=\"\",\"ENVIO DO RELATÓRIO PENDENTE. \",\"\")","v":"ENVIO DO RELATÓRIO PENDENTE. "},{"$f":"IF(AND(RPA_FUER[[#This Row],[FC]]=\"a\",RPA_FUER[[#This Row],[AE]]=\"a\",RPA_FUER[[#This Row],[AC/LC]]=\"a\",RPA_FUER[[#This Row],[REL]]=\"a\"),\"COLABORADOR APTO PARA PAGAMENTO\",\"\")","v":""},{"$f":"MONTH(RPA_FUER[[#This Row],[DATA FINAL]])","v":1}]
[null,null,null,null,null,null,null,{"$f":"IFERROR(RPA_FUER[[#This Row],[DIÁRIAS]]*RPA_FUER[[#This Row],[VALOR \nUNITARIO]],\" \")","v":0},{"$f":"IFERROR('CONTROLE DE COLABORADORES'!$H12*0.2,\"\")","v":0},{"$f":"IFERROR('CONTROLE DE COLABORADORES'!$H12+'CONTROLE DE COLABORADORES'!$I12,\"\")","v":0},null,null,null,null,null,null,{"$f":"IF(RPA_FUER[[#This Row],[Obs Final]]<>\"\",\"CONCLUIDO\",IF(OR(RPA_FUER[[#This Row],[MÊS ATUAL]]=MONTH(TODAY()),RPA_FUER[[#This Row],[MÊS ATUAL]]<MONTH(TODAY())),\"CONFERIR\",\"DENTRO DO PRAZO\"))","v":"CONFERIR"},{"$f":"IF(RPA_FUER[[#This Row],[FC]]=\"\",\"ENVIO DA FICHA CADASTRAL PENDENTE; \",\"\")","v":"ENVIO DA FICHA CADASTRAL PENDENTE; "},{"$f":"IF(RPA_FUER[[#This Row],[AE]]=\"\",\"ENVIO DA AUTODECLARAÇÃO DE ESCOLARIDADE E RAÇA PENDENTE; \",\"\")","v":"ENVIO DA AUTODECLARAÇÃO DE ESCOLARIDADE E RAÇA PENDENTE; "},{"$f":"IF(RPA_FUER[[#This Row],[AC/LC]]=\"\",\"ENVIO DA AUTODECLARAÇÃO DE CARGO PENDENTE; \",\"\")","v":"ENVIO DA AUTODECLARAÇÃO DE CARGO PENDENTE; "},{"$f":"IF(RPA_FUER[[#This Row],[REL]]=\"\",\"ENVIO DO RELATÓRIO PENDENTE. \",\"\")","v":"ENVIO DO RELATÓRIO PENDENTE. "},{"$f":"IF(AND(RPA_FUER[[#This Row],[FC]]=\"a\",RPA_FUER[[#This Row],[AE]]=\"a\",RPA_FUER[[#This Row],[AC/LC]]=\"a\",RPA_FUER[[#This Row],[REL]]=\"a\"),\"COLABORADOR APTO PARA PAGAMENTO\",\"\")","v":""},{"$f":"MONTH(RPA_FUER[[#This Row],[DATA FINAL]])","v":1}]
[null,null,null,null,null,null,null,{"$f":"IFERROR(RPA_FUER[[#This Row],[DIÁRIAS]]*RPA_FUER[[#This Row],[VALOR \nUNITARIO]],\" \")","v":0},{"$f":"IFERROR('CONTROLE DE COLABORADORES'!$H13*0.2,\"\")","v":0},{"$f":"IFERROR('CONTROLE DE COLABORADORES'!$H13+'CONTROLE DE COLABORADORES'!$I13,\"\")","v":0},null,null,null,null,null,null,{"$f":"IF(RPA_FUER[[#This Row],[Obs Final]]<>\"\",\"CONCLUIDO\",IF(OR(RPA_FUER[[#This Row],[MÊS ATUAL]]=MONTH(TODAY()),RPA_FUER[[#This Row],[MÊS ATUAL]]<MONTH(TODAY())),\"CONFERIR\",\"DENTRO DO PRAZO\"))","v":"CONFERIR"},{"$f":"IF(RPA_FUER[[#This Row],[FC]]=\"\",\"ENVIO DA FICHA CADASTRAL PENDENTE; \",\"\")","v":"ENVIO DA FICHA CADASTRAL PENDENTE; "},{"$f":"IF(RPA_FUER[[#This Row],[AE]]=\"\",\"ENVIO DA AUTODECLARAÇÃO DE ESCOLARIDADE E RAÇA PENDENTE; \",\"\")","v":"ENVIO DA AUTODECLARAÇÃO DE ESCOLARIDADE E RAÇA PENDENTE; "},{"$f":"IF(RPA_FUER[[#This Row],[AC/LC]]=\"\",\"ENVIO DA AUTODECLARAÇÃO DE CARGO PENDENTE; \",\"\")","v":"ENVIO DA AUTODECLARAÇÃO DE CARGO PENDENTE; "},{"$f":"IF(RPA_FUER[[#This Row],[REL]]=\"\",\"ENVIO DO RELATÓRIO PENDENTE. \",\"\")","v":"ENVIO DO RELATÓRIO PENDENTE. "},{"$f":"IF(AND(RPA_FUER[[#This Row],[FC]]=\"a\",RPA_FUER[[#This Row],[AE]]=\"a\",RPA_FUER[[#This Row],[AC/LC]]=\"a\",RPA_FUER[[#This Row],[REL]]=\"a\"),\"COLABORADOR APTO PARA PAGAMENTO\",\"\")","v":""},{"$f":"MONTH(RPA_FUER[[#This Row],[DATA FINAL]])","v":1}]
[null,null,null,null,null,null,null,{"$f":"IFERROR(RPA_FUER[[#This Row],[DIÁRIAS]]*RPA_FUER[[#This Row],[VALOR \nUNITARIO]],\" \")","v":0},{"$f":"IFERROR('CONTROLE DE COLABORADORES'!$H14*0.2,\"\")","v":0},{"$f":"IFERROR('CONTROLE DE COLABORADORES'!$H14+'CONTROLE DE COLABORADORES'!$I14,\"\")","v":0},null,null,null,null,null,null,{"$f":"IF(RPA_FUER[[#This Row],[Obs Final]]<>\"\",\"CONCLUIDO\",IF(OR(RPA_FUER[[#This Row],[MÊS ATUAL]]=MONTH(TODAY()),RPA_FUER[[#This Row],[MÊS ATUAL]]<MONTH(TODAY())),\"CONFERIR\",\"DENTRO DO PRAZO\"))","v":"CONFERIR"},{"$f":"IF(RPA_FUER[[#This Row],[FC]]=\"\",\"ENVIO DA FICHA CADASTRAL PENDENTE; \",\"\")","v":"ENVIO DA FICHA CADASTRAL PENDENTE; "},{"$f":"IF(RPA_FUER[[#This Row],[AE]]=\"\",\"ENVIO DA AUTODECLARAÇÃO DE ESCOLARIDADE E RAÇA PENDENTE; \",\"\")","v":"ENVIO DA AUTODECLARAÇÃO DE ESCOLARIDADE E RAÇA PENDENTE; "},{"$f":"IF(RPA_FUER[[#This Row],[AC/LC]]=\"\",\"ENVIO DA AUTODECLARAÇÃO DE CARGO PENDENTE; \",\"\")","v":"ENVIO DA AUTODECLARAÇÃO DE CARGO PENDENTE; "},{"$f":"IF(RPA_FUER[[#This Row],[REL]]=\"\",\"ENVIO DO RELATÓRIO PENDENTE. \",\"\")","v":"ENVIO DO RELATÓRIO PENDENTE. "},{"$f":"IF(AND(RPA_FUER[[#This Row],[FC]]=\"a\",RPA_FUER[[#This Row],[AE]]=\"a\",RPA_FUER[[#This Row],[AC/LC]]=\"a\",RPA_FUER[[#This Row],[REL]]=\"a\"),\"COLABORADOR APTO PARA PAGAMENTO\",\"\")","v":""},{"$f":"MONTH(RPA_FUER[[#This Row],[DATA FINAL]])","v":1}]
[null,null,null,null,null,null,null,{"$f":"IFERROR(RPA_FUER[[#This Row],[DIÁRIAS]]*RPA_FUER[[#This Row],[VALOR \nUNITARIO]],\" \")","v":0},{"$f":"IFERROR('CONTROLE DE COLABORADORES'!$H15*0.2,\"\")","v":0},{"$f":"IFERROR('CONTROLE DE COLABORADORES'!$H15+'CONTROLE DE COLABORADORES'!$I15,\"\")","v":0},null,null,null,null,null,null,{"$f":"IF(RPA_FUER[[#This Row],[Obs Final]]<>\"\",\"CONCLUIDO\",IF(OR(RPA_FUER[[#This Row],[MÊS ATUAL]]=MONTH(TODAY()),RPA_FUER[[#This Row],[MÊS ATUAL]]<MONTH(TODAY())),\"CONFERIR\",\"DENTRO DO PRAZO\"))","v":"CONFERIR"},{"$f":"IF(RPA_FUER[[#This Row],[FC]]=\"\",\"ENVIO DA FICHA CADASTRAL PENDENTE; \",\"\")","v":"ENVIO DA FICHA CADASTRAL PENDENTE; "},{"$f":"IF(RPA_FUER[[#This Row],[AE]]=\"\",\"ENVIO DA AUTODECLARAÇÃO DE ESCOLARIDADE E RAÇA PENDENTE; \",\"\")","v":"ENVIO DA AUTODECLARAÇÃO DE ESCOLARIDADE E RAÇA PENDENTE; "},{"$f":"IF(RPA_FUER[[#This Row],[AC/LC]]=\"\",\"ENVIO DA AUTODECLARAÇÃO DE CARGO PENDENTE; \",\"\")","v":"ENVIO DA AUTODECLARAÇÃO DE CARGO PENDENTE; "},{"$f":"IF(RPA_FUER[[#This Row],[REL]]=\"\",\"ENVIO DO RELATÓRIO PENDENTE. \",\"\")","v":"ENVIO DO RELATÓRIO PENDENTE. "},{"$f":"IF(AND(RPA_FUER[[#This Row],[FC]]=\"a\",RPA_FUER[[#This Row],[AE]]=\"a\",RPA_FUER[[#This Row],[AC/LC]]=\"a\",RPA_FUER[[#This Row],[REL]]=\"a\"),\"COLABORADOR APTO PARA PAGAMENTO\",\"\")","v":""},{"$f":"MONTH(RPA_FUER[[#This Row],[DATA FINAL]])","v":1}]
[null,null,null,null,null,null,null,{"$f":"IFERROR(RPA_FUER[[#This Row],[DIÁRIAS]]*RPA_FUER[[#This Row],[VALOR \nUNITARIO]],\" \")","v":0},{"$f":"IFERROR('CONTROLE DE COLABORADORES'!$H16*0.2,\"\")","v":0},{"$f":"IFERROR('CONTROLE DE COLABORADORES'!$H16+'CONTROLE DE COLABORADORES'!$I16,\"\")","v":0},null,null,null,null,null,null,{"$f":"IF(RPA_FUER[[#This Row],[Obs Final]]<>\"\",\"CONCLUIDO\",IF(OR(RPA_FUER[[#This Row],[MÊS ATUAL]]=MONTH(TODAY()),RPA_FUER[[#This Row],[MÊS ATUAL]]<MONTH(TODAY())),\"CONFERIR\",\"DENTRO DO PRAZO\"))","v":"CONFERIR"},{"$f":"IF(RPA_FUER[[#This Row],[FC]]=\"\",\"ENVIO DA FICHA CADASTRAL PENDENTE; \",\"\")","v":"ENVIO DA FICHA CADASTRAL PENDENTE; "},{"$f":"IF(RPA_FUER[[#This Row],[AE]]=\"\",\"ENVIO DA AUTODECLARAÇÃO DE ESCOLARIDADE E RAÇA PENDENTE; \",\"\")","v":"ENVIO DA AUTODECLARAÇÃO DE ESCOLARIDADE E RAÇA PENDENTE; "},{"$f":"IF(RPA_FUER[[#This Row],[AC/LC]]=\"\",\"ENVIO DA AUTODECLARAÇÃO DE CARGO PENDENTE; \",\"\")","v":"ENVIO DA AUTODECLARAÇÃO DE CARGO PENDENTE; "},{"$f":"IF(RPA_FUER[[#This Row],[REL]]=\"\",\"ENVIO DO RELATÓRIO PENDENTE. \",\"\")","v":"ENVIO DO RELATÓRIO PENDENTE. "},{"$f":"IF(AND(RPA_FUER[[#This Row],[FC]]=\"a\",RPA_FUER[[#This Row],[AE]]=\"a\",RPA_FUER[[#This Row],[AC/LC]]=\"a\",RPA_FUER[[#This Row],[REL]]=\"a\"),\"COLABORADOR APTO PARA PAGAMENTO\",\"\")","v":""},{"$f":"MONTH(RPA_FUER[[#This Row],[DATA FINAL]])","v":1}]
[null,null,null,null,null,null,null,{"$f":"IFERROR(RPA_FUER[[#This Row],[DIÁRIAS]]*RPA_FUER[[#This Row],[VALOR \nUNITARIO]],\" \")","v":0},{"$f":"IFERROR('CONTROLE DE COLABORADORES'!$H17*0.2,\"\")","v":0},{"$f":"IFERROR('CONTROLE DE COLABORADORES'!$H17+'CONTROLE DE COLABORADORES'!$I17,\"\")","v":0},null,null,null,null,null,null,{"$f":"IF(RPA_FUER[[#This Row],[Obs Final]]<>\"\",\"CONCLUIDO\",IF(OR(RPA_FUER[[#This Row],[MÊS ATUAL]]=MONTH(TODAY()),RPA_FUER[[#This Row],[MÊS ATUAL]]<MONTH(TODAY())),\"CONFERIR\",\"DENTRO DO PRAZO\"))","v":"CONFERIR"},{"$f":"IF(RPA_FUER[[#This Row],[FC]]=\"\",\"ENVIO DA FICHA CADASTRAL PENDENTE; \",\"\")","v":"ENVIO DA FICHA CADASTRAL PENDENTE; "},{"$f":"IF(RPA_FUER[[#This Row],[AE]]=\"\",\"ENVIO DA AUTODECLARAÇÃO DE ESCOLARIDADE E RAÇA PENDENTE; \",\"\")","v":"ENVIO DA AUTODECLARAÇÃO DE ESCOLARIDADE E RAÇA PENDENTE; "},{"$f":"IF(RPA_FUER[[#This Row],[AC/LC]]=\"\",\"ENVIO DA AUTODECLARAÇÃO DE CARGO PENDENTE; \",\"\")","v":"ENVIO DA AUTODECLARAÇÃO DE CARGO PENDENTE; "},{"$f":"IF(RPA_FUER[[#This Row],[REL]]=\"\",\"ENVIO DO RELATÓRIO PENDENTE. \",\"\")","v":"ENVIO DO RELATÓRIO PENDENTE. "},{"$f":"IF(AND(RPA_FUER[[#This Row],[FC]]=\"a\",RPA_FUER[[#This Row],[AE]]=\"a\",RPA_FUER[[#This Row],[AC/LC]]=\"a\",RPA_FUER[[#This Row],[REL]]=\"a\"),\"COLABORADOR APTO PARA PAGAMENTO\",\"\")","v":""},{"$f":"MONTH(RPA_FUER[[#This Row],[DATA FINAL]])","v":1}]
[null,null,null,null,null,null,null,{"$f":"IFERROR(RPA_FUER[[#This Row],[DIÁRIAS]]*RPA_FUER[[#This Row],[VALOR \nUNITARIO]],\" \")","v":0},{"$f":"IFERROR('CONTROLE DE COLABORADORES'!$H18*0.2,\"\")","v":0},{"$f":"IFERROR('CONTROLE DE COLABORADORES'!$H18+'CONTROLE DE COLABORADORES'!$I18,\"\")","v":0},null,null,null,null,null,null,{"$f":"IF(RPA_FUER[[#This Row],[Obs Final]]<>\"\",\"CONCLUIDO\",IF(OR(RPA_FUER[[#This Row],[MÊS ATUAL]]=MONTH(TODAY()),RPA_FUER[[#This Row],[MÊS ATUAL]]<MONTH(TODAY())),\"CONFERIR\",\"DENTRO DO PRAZO\"))","v":"CONFERIR"},{"$f":"IF(RPA_FUER[[#This Row],[FC]]=\"\",\"ENVIO DA FICHA CADASTRAL PENDENTE; \",\"\")","v":"ENVIO DA FICHA CADASTRAL PENDENTE; "},{"$f":"IF(RPA_FUER[[#This Row],[AE]]=\"\",\"ENVIO DA AUTODECLARAÇÃO DE ESCOLARIDADE E RAÇA PENDENTE; \",\"\")","v":"ENVIO DA AUTODECLARAÇÃO DE ESCOLARIDADE E RAÇA PENDENTE; "},{"$f":"IF(RPA_FUER[[#This Row],[AC/LC]]=\"\",\"ENVIO DA AUTODECLARAÇÃO DE CARGO PENDENTE; \",\"\")","v":"ENVIO DA AUTODECLARAÇÃO DE CARGO PENDENTE; "},{"$f":"IF(RPA_FUER[[#This Row],[REL]]=\"\",\"ENVIO DO RELATÓRIO PENDENTE. \",\"\")","v":"ENVIO DO RELATÓRIO PENDENTE. "},{"$f":"IF(AND(RPA_FUER[[#This Row],[FC]]=\"a\",RPA_FUER[[#This Row],[AE]]=\"a\",RPA_FUER[[#This Row],[AC/LC]]=\"a\",RPA_FUER[[#This Row],[REL]]=\"a\"),\"COLABORADOR APTO PARA PAGAMENTO\",\"\")","v":""},{"$f":"MONTH(RPA_FUER[[#This Row],[DATA FINAL]])","v":1}]
[null,null,null,null,null,null,null,{"$f":"IFERROR(RPA_FUER[[#This Row],[DIÁRIAS]]*RPA_FUER[[#This Row],[VALOR \nUNITARIO]],\" \")","v":0},{"$f":"IFERROR('CONTROLE DE COLABORADORES'!$H19*0.2,\"\")","v":0},{"$f":"IFERROR('CONTROLE DE COLABORADORES'!$H19+'CONTROLE DE COLABORADORES'!$I19,\"\")","v":0},null,null,null,null,null,null,{"$f":"IF(RPA_FUER[[#This Row],[Obs Final]]<>\"\",\"CONCLUIDO\",IF(OR(RPA_FUER[[#This Row],[MÊS ATUAL]]=MONTH(TODAY()),RPA_FUER[[#This Row],[MÊS ATUAL]]<MONTH(TODAY())),\"CONFERIR\",\"DENTRO DO PRAZO\"))","v":"CONFERIR"},{"$f":"IF(RPA_FUER[[#This Row],[FC]]=\"\",\"ENVIO DA FICHA CADASTRAL PENDENTE; \",\"\")","v":"ENVIO DA FICHA CADASTRAL PENDENTE; "},{"$f":"IF(RPA_FUER[[#This Row],[AE]]=\"\",\"ENVIO DA AUTODECLARAÇÃO DE ESCOLARIDADE E RAÇA PENDENTE; \",\"\")","v":"ENVIO DA AUTODECLARAÇÃO DE ESCOLARIDADE E RAÇA PENDENTE; "},{"$f":"IF(RPA_FUER[[#This Row],[AC/LC]]=\"\",\"ENVIO DA AUTODECLARAÇÃO DE CARGO PENDENTE; \",\"\")","v":"ENVIO DA AUTODECLARAÇÃO DE CARGO PENDENTE; "},{"$f":"IF(RPA_FUER[[#This Row],[REL]]=\"\",\"ENVIO DO RELATÓRIO PENDENTE. \",\"\")","v":"ENVIO DO RELATÓRIO PENDENTE. "},{"$f":"IF(AND(RPA_FUER[[#This Row],[FC]]=\"a\",RPA_FUER[[#This Row],[AE]]=\"a\",RPA_FUER[[#This Row],[AC/LC]]=\"a\",RPA_FUER[[#This Row],[REL]]=\"a\"),\"COLABORADOR APTO PARA PAGAMENTO\",\"\")","v":""},{"$f":"MONTH(RPA_FUER[[#This Row],[DATA FINAL]])","v":1}]
[null,null,null,null,null,null,null,{"$f":"IFERROR(RPA_FUER[[#This Row],[DIÁRIAS]]*RPA_FUER[[#This Row],[VALOR \nUNITARIO]],\" \")","v":0},{"$f":"IFERROR('CONTROLE DE COLABORADORES'!$H20*0.2,\"\")","v":0},{"$f":"IFERROR('CONTROLE DE COLABORADORES'!$H20+'CONTROLE DE COLABORADORES'!$I20,\"\")","v":0},null,null,null,null,null,null,{"$f":"IF(RPA_FUER[[#This Row],[Obs Final]]<>\"\",\"CONCLUIDO\",IF(OR(RPA_FUER[[#This Row],[MÊS ATUAL]]=MONTH(TODAY()),RPA_FUER[[#This Row],[MÊS ATUAL]]<MONTH(TODAY())),\"CONFERIR\",\"DENTRO DO PRAZO\"))","v":"CONFERIR"},{"$f":"IF(RPA_FUER[[#This Row],[FC]]=\"\",\"ENVIO DA FICHA CADASTRAL PENDENTE; \",\"\")","v":"ENVIO DA FICHA CADASTRAL PENDENTE; "},{"$f":"IF(RPA_FUER[[#This Row],[AE]]=\"\",\"ENVIO DA AUTODECLARAÇÃO DE ESCOLARIDADE E RAÇA PENDENTE; \",\"\")","v":"ENVIO DA AUTODECLARAÇÃO DE ESCOLARIDADE E RAÇA PENDENTE; "},{"$f":"IF(RPA_FUER[[#This Row],[AC/LC]]=\"\",\"ENVIO DA AUTODECLARAÇÃO DE CARGO PENDENTE; \",\"\")","v":"ENVIO DA AUTODECLARAÇÃO DE CARGO PENDENTE; "},{"$f":"IF(RPA_FUER[[#This Row],[REL]]=\"\",\"ENVIO DO RELATÓRIO PENDENTE. \",\"\")","v":"ENVIO DO RELATÓRIO PENDENTE. "},{"$f":"IF(AND(RPA_FUER[[#This Row],[FC]]=\"a\",RPA_FUER[[#This Row],[AE]]=\"a\",RPA_FUER[[#This Row],[AC/LC]]=\"a\",RPA_FUER[[#This Row],[REL]]=\"a\"),\"COLABORADOR APTO PARA PAGAMENTO\",\"\")","v":""},{"$f":"MONTH(RPA_FUER[[#This Row],[DATA FINAL]])","v":1}]
[null,null,null,null,null,null,null,{"$f":"IFERROR(RPA_FUER[[#This Row],[DIÁRIAS]]*RPA_FUER[[#This Row],[VALOR \nUNITARIO]],\" \")","v":0},{"$f":"IFERROR('CONTROLE DE COLABORADORES'!$H21*0.2,\"\")","v":0},{"$f":"IFERROR('CONTROLE DE COLABORADORES'!$H21+'CONTROLE DE COLABORADORES'!$I21,\"\")","v":0},null,null,null,null,null,null,{"$f":"IF(RPA_FUER[[#This Row],[Obs Final]]<>\"\",\"CONCLUIDO\",IF(OR(RPA_FUER[[#This Row],[MÊS ATUAL]]=MONTH(TODAY()),RPA_FUER[[#This Row],[MÊS ATUAL]]<MONTH(TODAY())),\"CONFERIR\",\"DENTRO DO PRAZO\"))","v":"CONFERIR"},{"$f":"IF(RPA_FUER[[#This Row],[FC]]=\"\",\"ENVIO DA FICHA CADASTRAL PENDENTE; \",\"\")","v":"ENVIO DA FICHA CADASTRAL PENDENTE; "},{"$f":"IF(RPA_FUER[[#This Row],[AE]]=\"\",\"ENVIO DA AUTODECLARAÇÃO DE ESCOLARIDADE E RAÇA PENDENTE; \",\"\")","v":"ENVIO DA AUTODECLARAÇÃO DE ESCOLARIDADE E RAÇA PENDENTE; "},{"$f":"IF(RPA_FUER[[#This Row],[AC/LC]]=\"\",\"ENVIO DA AUTODECLARAÇÃO DE CARGO PENDENTE; \",\"\")","v":"ENVIO DA AUTODECLARAÇÃO DE CARGO PENDENTE; "},{"$f":"IF(RPA_FUER[[#This Row],[REL]]=\"\",\"ENVIO DO RELATÓRIO PENDENTE. \",\"\")","v":"ENVIO DO RELATÓRIO PENDENTE. "},{"$f":"IF(AND(RPA_FUER[[#This Row],[FC]]=\"a\",RPA_FUER[[#This Row],[AE]]=\"a\",RPA_FUER[[#This Row],[AC/LC]]=\"a\",RPA_FUER[[#This Row],[REL]]=\"a\"),\"COLABORADOR APTO PARA PAGAMENTO\",\"\")","v":""},{"$f":"MONTH(RPA_FUER[[#This Row],[DATA FINAL]])","v":1}]
[null,null,null,null,null,null,null,{"$f":"IFERROR(RPA_FUER[[#This Row],[DIÁRIAS]]*RPA_FUER[[#This Row],[VALOR \nUNITARIO]],\" \")","v":0},{"$f":"IFERROR('CONTROLE DE COLABORADORES'!$H22*0.2,\"\")","v":0},{"$f":"IFERROR('CONTROLE DE COLABORADORES'!$H22+'CONTROLE DE COLABORADORES'!$I22,\"\")","v":0},null,null,null,null,null,null,{"$f":"IF(RPA_FUER[[#This Row],[Obs Final]]<>\"\",\"CONCLUIDO\",IF(OR(RPA_FUER[[#This Row],[MÊS ATUAL]]=MONTH(TODAY()),RPA_FUER[[#This Row],[MÊS ATUAL]]<MONTH(TODAY())),\"CONFERIR\",\"DENTRO DO PRAZO\"))","v":"CONFERIR"},{"$f":"IF(RPA_FUER[[#This Row],[FC]]=\"\",\"ENVIO DA FICHA CADASTRAL PENDENTE; \",\"\")","v":"ENVIO DA FICHA CADASTRAL PENDENTE; "},{"$f":"IF(RPA_FUER[[#This Row],[AE]]=\"\",\"ENVIO DA AUTODECLARAÇÃO DE ESCOLARIDADE E RAÇA PENDENTE; \",\"\")","v":"ENVIO DA AUTODECLARAÇÃO DE ESCOLARIDADE E RAÇA PENDENTE; "},{"$f":"IF(RPA_FUER[[#This Row],[AC/LC]]=\"\",\"ENVIO DA AUTODECLARAÇÃO DE CARGO PENDENTE; \",\"\")","v":"ENVIO DA AUTODECLARAÇÃO DE CARGO PENDENTE; "},{"$f":"IF(RPA_FUER[[#This Row],[REL]]=\"\",\"ENVIO DO RELATÓRIO PENDENTE. \",\"\")","v":"ENVIO DO RELATÓRIO PENDENTE. "},{"$f":"IF(AND(RPA_FUER[[#This Row],[FC]]=\"a\",RPA_FUER[[#This Row],[AE]]=\"a\",RPA_FUER[[#This Row],[AC/LC]]=\"a\",RPA_FUER[[#This Row],[REL]]=\"a\"),\"COLABORADOR APTO PARA PAGAMENTO\",\"\")","v":""},{"$f":"MONTH(RPA_FUER[[#This Row],[DATA FINAL]])","v":1}]
[null,null,null,null,null,null,null,{"$f":"IFERROR(RPA_FUER[[#This Row],[DIÁRIAS]]*RPA_FUER[[#This Row],[VALOR \nUNITARIO]],\" \")","v":0},{"$f":"IFERROR('CONTROLE DE COLABORADORES'!$H23*0.2,\"\")","v":0},{"$f":"IFERROR('CONTROLE DE COLABORADORES'!$H23+'CONTROLE DE COLABORADORES'!$I23,\"\")","v":0},null,null,null,null,null,null,{"$f":"IF(RPA_FUER[[#This Row],[Obs Final]]<>\"\",\"CONCLUIDO\",IF(OR(RPA_FUER[[#This Row],[MÊS ATUAL]]=MONTH(TODAY()),RPA_FUER[[#This Row],[MÊS ATUAL]]<MONTH(TODAY())),\"CONFERIR\",\"DENTRO DO PRAZO\"))","v":"CONFERIR"},{"$f":"IF(RPA_FUER[[#This Row],[FC]]=\"\",\"ENVIO DA FICHA CADASTRAL PENDENTE; \",\"\")","v":"ENVIO DA FICHA CADASTRAL PENDENTE; "},{"$f":"IF(RPA_FUER[[#This Row],[AE]]=\"\",\"ENVIO DA AUTODECLARAÇÃO DE ESCOLARIDADE E RAÇA PENDENTE; \",\"\")","v":"ENVIO DA AUTODECLARAÇÃO DE ESCOLARIDADE E RAÇA PENDENTE; "},{"$f":"IF(RPA_FUER[[#This Row],[AC/LC]]=\"\",\"ENVIO DA AUTODECLARAÇÃO DE CARGO PENDENTE; \",\"\")","v":"ENVIO DA AUTODECLARAÇÃO DE CARGO PENDENTE; "},{"$f":"IF(RPA_FUER[[#This Row],[REL]]=\"\",\"ENVIO DO RELATÓRIO PENDENTE. \",\"\")","v":"ENVIO DO RELATÓRIO PENDENTE. "},{"$f":"IF(AND(RPA_FUER[[#This Row],[FC]]=\"a\",RPA_FUER[[#This Row],[AE]]=\"a\",RPA_FUER[[#This Row],[AC/LC]]=\"a\",RPA_FUER[[#This Row],[REL]]=\"a\"),\"COLABORADOR APTO PARA PAGAMENTO\",\"\")","v":""},{"$f":"MONTH(RPA_FUER[[#This Row],[DATA FINAL]])","v":1}]
[null,null,null,null,null,null,null,{"$f":"IFERROR(RPA_FUER[[#This Row],[DIÁRIAS]]*RPA_FUER[[#This Row],[VALOR \nUNITARIO]],\" \")","v":0},{"$f":"IFERROR('CONTROLE DE COLABORADORES'!$H24*0.2,\"\")","v":0},{"$f":"IFERROR('CONTROLE DE COLABORADORES'!$H24+'CONTROLE DE COLABORADORES'!$I24,\"\")","v":0},null,null,null,null,null,null,{"$f":"IF(RPA_FUER[[#This Row],[Obs Final]]<>\"\",\"CONCLUIDO\",IF(OR(RPA_FUER[[#This Row],[MÊS ATUAL]]=MONTH(TODAY()),RPA_FUER[[#This Row],[MÊS ATUAL]]<MONTH(TODAY())),\"CONFERIR\",\"DENTRO DO PRAZO\"))","v":"CONFERIR"},{"$f":"IF(RPA_FUER[[#This Row],[FC]]=\"\",\"ENVIO DA FICHA CADASTRAL PENDENTE; \",\"\")","v":"ENVIO DA FICHA CADASTRAL PENDENTE; "},{"$f":"IF(RPA_FUER[[#This Row],[AE]]=\"\",\"ENVIO DA AUTODECLARAÇÃO DE ESCOLARIDADE E RAÇA PENDENTE; \",\"\")","v":"ENVIO DA AUTODECLARAÇÃO DE ESCOLARIDADE E RAÇA PENDENTE; "},{"$f":"IF(RPA_FUER[[#This Row],[AC/LC]]=\"\",\"ENVIO DA AUTODECLARAÇÃO DE CARGO PENDENTE; \",\"\")","v":"ENVIO DA AUTODECLARAÇÃO DE CARGO PENDENTE; "},{"$f":"IF(RPA_FUER[[#This Row],[REL]]=\"\",\"ENVIO DO RELATÓRIO PENDENTE. \",\"\")","v":"ENVIO DO RELATÓRIO PENDENTE. "},{"$f":"IF(AND(RPA_FUER[[#This Row],[FC]]=\"a\",RPA_FUER[[#This Row],[AE]]=\"a\",RPA_FUER[[#This Row],[AC/LC]]=\"a\",RPA_FUER[[#This Row],[REL]]=\"a\"),\"COLABORADOR APTO PARA PAGAMENTO\",\"\")","v":""},{"$f":"MONTH(RPA_FUER[[#This Row],[DATA FINAL]])","v":1}]
[null,null,null,null,null,null,null,{"$f":"IFERROR(RPA_FUER[[#This Row],[DIÁRIAS]]*RPA_FUER[[#This Row],[VALOR \nUNITARIO]],\" \")","v":0},{"$f":"IFERROR('CONTROLE DE COLABORADORES'!$H25*0.2,\"\")","v":0},{"$f":"IFERROR('CONTROLE DE COLABORADORES'!$H25+'CONTROLE DE COLABORADORES'!$I25,\"\")","v":0},null,null,null,null,null,null,{"$f":"IF(RPA_FUER[[#This Row],[Obs Final]]<>\"\",\"CONCLUIDO\",IF(OR(RPA_FUER[[#This Row],[MÊS ATUAL]]=MONTH(TODAY()),RPA_FUER[[#This Row],[MÊS ATUAL]]<MONTH(TODAY())),\"CONFERIR\",\"DENTRO DO PRAZO\"))","v":"CONFERIR"},{"$f":"IF(RPA_FUER[[#This Row],[FC]]=\"\",\"ENVIO DA FICHA CADASTRAL PENDENTE; \",\"\")","v":"ENVIO DA FICHA CADASTRAL PENDENTE; "},{"$f":"IF(RPA_FUER[[#This Row],[AE]]=\"\",\"ENVIO DA AUTODECLARAÇÃO DE ESCOLARIDADE E RAÇA PENDENTE; \",\"\")","v":"ENVIO DA AUTODECLARAÇÃO DE ESCOLARIDADE E RAÇA PENDENTE; "},{"$f":"IF(RPA_FUER[[#This Row],[AC/LC]]=\"\",\"ENVIO DA AUTODECLARAÇÃO DE CARGO PENDENTE; \",\"\")","v":"ENVIO DA AUTODECLARAÇÃO DE CARGO PENDENTE; "},{"$f":"IF(RPA_FUER[[#This Row],[REL]]=\"\",\"ENVIO DO RELATÓRIO PENDENTE. \",\"\")","v":"ENVIO DO RELATÓRIO PENDENTE. "},{"$f":"IF(AND(RPA_FUER[[#This Row],[FC]]=\"a\",RPA_FUER[[#This Row],[AE]]=\"a\",RPA_FUER[[#This Row],[AC/LC]]=\"a\",RPA_FUER[[#This Row],[REL]]=\"a\"),\"COLABORADOR APTO PARA PAGAMENTO\",\"\")","v":""},{"$f":"MONTH(RPA_FUER[[#This Row],[DATA FINAL]])","v":1}]
[null,null,null,null,null,null,null,{"$f":"IFERROR(RPA_FUER[[#This Row],[DIÁRIAS]]*RPA_FUER[[#This Row],[VALOR \nUNITARIO]],\" \")","v":0},{"$f":"IFERROR('CONTROLE DE COLABORADORES'!$H26*0.2,\"\")","v":0},{"$f":"IFERROR('CONTROLE DE COLABORADORES'!$H26+'CONTROLE DE COLABORADORES'!$I26,\"\")","v":0},null,null,null,null,null,null,{"$f":"IF(RPA_FUER[[#This Row],[Obs Final]]<>\"\",\"CONCLUIDO\",IF(OR(RPA_FUER[[#This Row],[MÊS ATUAL]]=MONTH(TODAY()),RPA_FUER[[#This Row],[MÊS ATUAL]]<MONTH(TODAY())),\"CONFERIR\",\"DENTRO DO PRAZO\"))","v":"CONFERIR"},{"$f":"IF(RPA_FUER[[#This Row],[FC]]=\"\",\"ENVIO DA FICHA CADASTRAL PENDENTE; \",\"\")","v":"ENVIO DA FICHA CADASTRAL PENDENTE; "},{"$f":"IF(RPA_FUER[[#This Row],[AE]]=\"\",\"ENVIO DA AUTODECLARAÇÃO DE ESCOLARIDADE E RAÇA PENDENTE; \",\"\")","v":"ENVIO DA AUTODECLARAÇÃO DE ESCOLARIDADE E RAÇA PENDENTE; "},{"$f":"IF(RPA_FUER[[#This Row],[AC/LC]]=\"\",\"ENVIO DA AUTODECLARAÇÃO DE CARGO PENDENTE; \",\"\")","v":"ENVIO DA AUTODECLARAÇÃO DE CARGO PENDENTE; "},{"$f":"IF(RPA_FUER[[#This Row],[REL]]=\"\",\"ENVIO DO RELATÓRIO PENDENTE. \",\"\")","v":"ENVIO DO RELATÓRIO PENDENTE. "},{"$f":"IF(AND(RPA_FUER[[#This Row],[FC]]=\"a\",RPA_FUER[[#This Row],[AE]]=\"a\",RPA_FUER[[#This Row],[AC/LC]]=\"a\",RPA_FUER[[#This Row],[REL]]=\"a\"),\"COLABORADOR APTO PARA PAGAMENTO\",\"\")","v":""},{"$f":"MONTH(RPA_FUER[[#This Row],[DATA FINAL]])","v":1}]
[null,null,null,null,null,null,null,{"$f":"IFERROR(RPA_FUER[[#This Row],[DIÁRIAS]]*RPA_FUER[[#This Row],[VALOR \nUNITARIO]],\" \")","v":0},{"$f":"IFERROR('CONTROLE DE COLABORADORES'!$H27*0.2,\"\")","v":0},{"$f":"IFERROR('CONTROLE DE COLABORADORES'!$H27+'CONTROLE DE COLABORADORES'!$I27,\"\")","v":0},null,null,null,null,null,null,{"$f":"IF(RPA_FUER[[#This Row],[Obs Final]]<>\"\",\"CONCLUIDO\",IF(OR(RPA_FUER[[#This Row],[MÊS ATUAL]]=MONTH(TODAY()),RPA_FUER[[#This Row],[MÊS ATUAL]]<MONTH(TODAY())),\"CONFERIR\",\"DENTRO DO PRAZO\"))","v":"CONFERIR"},{"$f":"IF(RPA_FUER[[#This Row],[FC]]=\"\",\"ENVIO DA FICHA CADASTRAL PENDENTE; \",\"\")","v":"ENVIO DA FICHA CADASTRAL PENDENTE; "},{"$f":"IF(RPA_FUER[[#This Row],[AE]]=\"\",\"ENVIO DA AUTODECLARAÇÃO DE ESCOLARIDADE E RAÇA PENDENTE; \",\"\")","v":"ENVIO DA AUTODECLARAÇÃO DE ESCOLARIDADE E RAÇA PENDENTE; "},{"$f":"IF(RPA_FUER[[#This Row],[AC/LC]]=\"\",\"ENVIO DA AUTODECLARAÇÃO DE CARGO PENDENTE; \",\"\")","v":"ENVIO DA AUTODECLARAÇÃO DE CARGO PENDENTE; "},{"$f":"IF(RPA_FUER[[#This Row],[REL]]=\"\",\"ENVIO DO RELATÓRIO PENDENTE. \",\"\")","v":"ENVIO DO RELATÓRIO PENDENTE. "},{"$f":"IF(AND(RPA_FUER[[#This Row],[FC]]=\"a\",RPA_FUER[[#This Row],[AE]]=\"a\",RPA_FUER[[#This Row],[AC/LC]]=\"a\",RPA_FUER[[#This Row],[REL]]=\"a\"),\"COLABORADOR APTO PARA PAGAMENTO\",\"\")","v":""},{"$f":"MONTH(RPA_FUER[[#This Row],[DATA FINAL]])","v":1}]
[null,null,null,null,null,null,null,{"$f":"IFERROR(RPA_FUER[[#This Row],[DIÁRIAS]]*RPA_FUER[[#This Row],[VALOR \nUNITARIO]],\" \")","v":0},{"$f":"IFERROR('CONTROLE DE COLABORADORES'!$H28*0.2,\"\")","v":0},{"$f":"IFERROR('CONTROLE DE COLABORADORES'!$H28+'CONTROLE DE COLABORADORES'!$I28,\"\")","v":0},null,null,null,null,null,null,{"$f":"IF(RPA_FUER[[#This Row],[Obs Final]]<>\"\",\"CONCLUIDO\",IF(OR(RPA_FUER[[#This Row],[MÊS ATUAL]]=MONTH(TODAY()),RPA_FUER[[#This Row],[MÊS ATUAL]]<MONTH(TODAY())),\"CONFERIR\",\"DENTRO DO PRAZO\"))","v":"CONFERIR"},{"$f":"IF(RPA_FUER[[#This Row],[FC]]=\"\",\"ENVIO DA FICHA CADASTRAL PENDENTE; \",\"\")","v":"ENVIO DA FICHA CADASTRAL PENDENTE; "},{"$f":"IF(RPA_FUER[[#This Row],[AE]]=\"\",\"ENVIO DA AUTODECLARAÇÃO DE ESCOLARIDADE E RAÇA PENDENTE; \",\"\")","v":"ENVIO DA AUTODECLARAÇÃO DE ESCOLARIDADE E RAÇA PENDENTE; "},{"$f":"IF(RPA_FUER[[#This Row],[AC/LC]]=\"\",\"ENVIO DA AUTODECLARAÇÃO DE CARGO PENDENTE; \",\"\")","v":"ENVIO DA AUTODECLARAÇÃO DE CARGO PENDENTE; "},{"$f":"IF(RPA_FUER[[#This Row],[REL]]=\"\",\"ENVIO DO RELATÓRIO PENDENTE. \",\"\")","v":"ENVIO DO RELATÓRIO PENDENTE. "},{"$f":"IF(AND(RPA_FUER[[#This Row],[FC]]=\"a\",RPA_FUER[[#This Row],[AE]]=\"a\",RPA_FUER[[#This Row],[AC/LC]]=\"a\",RPA_FUER[[#This Row],[REL]]=\"a\"),\"COLABORADOR APTO PARA PAGAMENTO\",\"\")","v":""},{"$f":"MONTH(RPA_FUER[[#This Row],[DATA FINAL]])","v":1}]
[null,null,null,null,null,null,null,{"$f":"IFERROR(RPA_FUER[[#This Row],[DIÁRIAS]]*RPA_FUER[[#This Row],[VALOR \nUNITARIO]],\" \")","v":0},{"$f":"IFERROR('CONTROLE DE COLABORADORES'!$H29*0.2,\"\")","v":0},{"$f":"IFERROR('CONTROLE DE COLABORADORES'!$H29+'CONTROLE DE COLABORADORES'!$I29,\"\")","v":0},null,null,null,null,null,null,{"$f":"IF(RPA_FUER[[#This Row],[Obs Final]]<>\"\",\"CONCLUIDO\",IF(OR(RPA_FUER[[#This Row],[MÊS ATUAL]]=MONTH(TODAY()),RPA_FUER[[#This Row],[MÊS ATUAL]]<MONTH(TODAY())),\"CONFERIR\",\"DENTRO DO PRAZO\"))","v":"CONFERIR"},{"$f":"IF(RPA_FUER[[#This Row],[FC]]=\"\",\"ENVIO DA FICHA CADASTRAL PENDENTE; \",\"\")","v":"ENVIO DA FICHA CADASTRAL PENDENTE; "},{"$f":"IF(RPA_FUER[[#This Row],[AE]]=\"\",\"ENVIO DA AUTODECLARAÇÃO DE ESCOLARIDADE E RAÇA PENDENTE; \",\"\")","v":"ENVIO DA AUTODECLARAÇÃO DE ESCOLARIDADE E RAÇA PENDENTE; "},{"$f":"IF(RPA_FUER[[#This Row],[AC/LC]]=\"\",\"ENVIO DA AUTODECLARAÇÃO DE CARGO PENDENTE; \",\"\")","v":"ENVIO DA AUTODECLARAÇÃO DE CARGO PENDENTE; "},{"$f":"IF(RPA_FUER[[#This Row],[REL]]=\"\",\"ENVIO DO RELATÓRIO PENDENTE. \",\"\")","v":"ENVIO DO RELATÓRIO PENDENTE. "},{"$f":"IF(AND(RPA_FUER[[#This Row],[FC]]=\"a\",RPA_FUER[[#This Row],[AE]]=\"a\",RPA_FUER[[#This Row],[AC/LC]]=\"a\",RPA_FUER[[#This Row],[REL]]=\"a\"),\"COLABORADOR APTO PARA PAGAMENTO\",\"\")","v":""},{"$f":"MONTH(RPA_FUER[[#This Row],[DATA FINAL]])","v":1}]
[null,null,null,null,null,null,null,{"$f":"IFERROR(RPA_FUER[[#This Row],[DIÁRIAS]]*RPA_FUER[[#This Row],[VALOR \nUNITARIO]],\" \")","v":0},{"$f":"IFERROR('CONTROLE DE COLABORADORES'!$H30*0.2,\"\")","v":0},{"$f":"IFERROR('CONTROLE DE COLABORADORES'!$H30+'CONTROLE DE COLABORADORES'!$I30,\"\")","v":0},null,null,null,null,null,null,{"$f":"IF(RPA_FUER[[#This Row],[Obs Final]]<>\"\",\"CONCLUIDO\",IF(OR(RPA_FUER[[#This Row],[MÊS ATUAL]]=MONTH(TODAY()),RPA_FUER[[#This Row],[MÊS ATUAL]]<MONTH(TODAY())),\"CONFERIR\",\"DENTRO DO PRAZO\"))","v":"CONFERIR"},{"$f":"IF(RPA_FUER[[#This Row],[FC]]=\"\",\"ENVIO DA FICHA CADASTRAL PENDENTE; \",\"\")","v":"ENVIO DA FICHA CADASTRAL PENDENTE; "},{"$f":"IF(RPA_FUER[[#This Row],[AE]]=\"\",\"ENVIO DA AUTODECLARAÇÃO DE ESCOLARIDADE E RAÇA PENDENTE; \",\"\")","v":"ENVIO DA AUTODECLARAÇÃO DE ESCOLARIDADE E RAÇA PENDENTE; "},{"$f":"IF(RPA_FUER[[#This Row],[AC/LC]]=\"\",\"ENVIO DA AUTODECLARAÇÃO DE CARGO PENDENTE; \",\"\")","v":"ENVIO DA AUTODECLARAÇÃO DE CARGO PENDENTE; "},{"$f":"IF(RPA_FUER[[#This Row],[REL]]=\"\",\"ENVIO DO RELATÓRIO PENDENTE. \",\"\")","v":"ENVIO DO RELATÓRIO PENDENTE. "},{"$f":"IF(AND(RPA_FUER[[#This Row],[FC]]=\"a\",RPA_FUER[[#This Row],[AE]]=\"a\",RPA_FUER[[#This Row],[AC/LC]]=\"a\",RPA_FUER[[#This Row],[REL]]=\"a\"),\"COLABORADOR APTO PARA PAGAMENTO\",\"\")","v":""},{"$f":"MONTH(RPA_FUER[[#This Row],[DATA FINAL]])","v":1}]
[null,null,null,null,null,null,null,{"$f":"IFERROR(RPA_FUER[[#This Row],[DIÁRIAS]]*RPA_FUER[[#This Row],[VALOR \nUNITARIO]],\" \")","v":0},{"$f":"IFERROR('CONTROLE DE COLABORADORES'!$H31*0.2,\"\")","v":0},{"$f":"IFERROR('CONTROLE DE COLABORADORES'!$H31+'CONTROLE DE COLABORADORES'!$I31,\"\")","v":0},null,null,null,null,null,null,{"$f":"IF(RPA_FUER[[#This Row],[Obs Final]]<>\"\",\"CONCLUIDO\",IF(OR(RPA_FUER[[#This Row],[MÊS ATUAL]]=MONTH(TODAY()),RPA_FUER[[#This Row],[MÊS ATUAL]]<MONTH(TODAY())),\"CONFERIR\",\"DENTRO DO PRAZO\"))","v":"CONFERIR"},{"$f":"IF(RPA_FUER[[#This Row],[FC]]=\"\",\"ENVIO DA FICHA CADASTRAL PENDENTE; \",\"\")","v":"ENVIO DA FICHA CADASTRAL PENDENTE; "},{"$f":"IF(RPA_FUER[[#This Row],[AE]]=\"\",\"ENVIO DA AUTODECLARAÇÃO DE ESCOLARIDADE E RAÇA PENDENTE; \",\"\")","v":"ENVIO DA AUTODECLARAÇÃO DE ESCOLARIDADE E RAÇA PENDENTE; "},{"$f":"IF(RPA_FUER[[#This Row],[AC/LC]]=\"\",\"ENVIO DA AUTODECLARAÇÃO DE CARGO PENDENTE; \",\"\")","v":"ENVIO DA AUTODECLARAÇÃO DE CARGO PENDENTE; "},{"$f":"IF(RPA_FUER[[#This Row],[REL]]=\"\",\"ENVIO DO RELATÓRIO PENDENTE. \",\"\")","v":"ENVIO DO RELATÓRIO PENDENTE. "},{"$f":"IF(AND(RPA_FUER[[#This Row],[FC]]=\"a\",RPA_FUER[[#This Row],[AE]]=\"a\",RPA_FUER[[#This Row],[AC/LC]]=\"a\",RPA_FUER[[#This Row],[REL]]=\"a\"),\"COLABORADOR APTO PARA PAGAMENTO\",\"\")","v":""},{"$f":"MONTH(RPA_FUER[[#This Row],[DATA FINAL]])","v":1}]
[null,null,null,null,null,null,null,{"$f":"IFERROR(RPA_FUER[[#This Row],[DIÁRIAS]]*RPA_FUER[[#This Row],[VALOR \nUNITARIO]],\" \")","v":0},{"$f":"IFERROR('CONTROLE DE COLABORADORES'!$H32*0.2,\"\")","v":0},{"$f":"IFERROR('CONTROLE DE COLABORADORES'!$H32+'CONTROLE DE COLABORADORES'!$I32,\"\")","v":0},null,null,null,null,null,null,{"$f":"IF(RPA_FUER[[#This Row],[Obs Final]]<>\"\",\"CONCLUIDO\",IF(OR(RPA_FUER[[#This Row],[MÊS ATUAL]]=MONTH(TODAY()),RPA_FUER[[#This Row],[MÊS ATUAL]]<MONTH(TODAY())),\"CONFERIR\",\"DENTRO DO PRAZO\"))","v":"CONFERIR"},{"$f":"IF(RPA_FUER[[#This Row],[FC]]=\"\",\"ENVIO DA FICHA CADASTRAL PENDENTE; \",\"\")","v":"ENVIO DA FICHA CADASTRAL PENDENTE; "},{"$f":"IF(RPA_FUER[[#This Row],[AE]]=\"\",\"ENVIO DA AUTODECLARAÇÃO DE ESCOLARIDADE E RAÇA PENDENTE; \",\"\")","v":"ENVIO DA AUTODECLARAÇÃO DE ESCOLARIDADE E RAÇA PENDENTE; "},{"$f":"IF(RPA_FUER[[#This Row],[AC/LC]]=\"\",\"ENVIO DA AUTODECLARAÇÃO DE CARGO PENDENTE; \",\"\")","v":"ENVIO DA AUTODECLARAÇÃO DE CARGO PENDENTE; "},{"$f":"IF(RPA_FUER[[#This Row],[REL]]=\"\",\"ENVIO DO RELATÓRIO PENDENTE. \",\"\")","v":"ENVIO DO RELATÓRIO PENDENTE. "},{"$f":"IF(AND(RPA_FUER[[#This Row],[FC]]=\"a\",RPA_FUER[[#This Row],[AE]]=\"a\",RPA_FUER[[#This Row],[AC/LC]]=\"a\",RPA_FUER[[#This Row],[REL]]=\"a\"),\"COLABORADOR APTO PARA PAGAMENTO\",\"\")","v":""},{"$f":"MONTH(RPA_FUER[[#This Row],[DATA FINAL]])","v":1}]
[null,null,null,null,null,null,null,{"$f":"IFERROR(RPA_FUER[[#This Row],[DIÁRIAS]]*RPA_FUER[[#This Row],[VALOR \nUNITARIO]],\" \")","v":0},{"$f":"IFERROR('CONTROLE DE COLABORADORES'!$H33*0.2,\"\")","v":0},{"$f":"IFERROR('CONTROLE DE COLABORADORES'!$H33+'CONTROLE DE COLABORADORES'!$I33,\"\")","v":0},null,null,null,null,null,null,{"$f":"IF(RPA_FUER[[#This Row],[Obs Final]]<>\"\",\"CONCLUIDO\",IF(OR(RPA_FUER[[#This Row],[MÊS ATUAL]]=MONTH(TODAY()),RPA_FUER[[#This Row],[MÊS ATUAL]]<MONTH(TODAY())),\"CONFERIR\",\"DENTRO DO PRAZO\"))","v":"CONFERIR"},{"$f":"IF(RPA_FUER[[#This Row],[FC]]=\"\",\"ENVIO DA FICHA CADASTRAL PENDENTE; \",\"\")","v":"ENVIO DA FICHA CADASTRAL PENDENTE; "},{"$f":"IF(RPA_FUER[[#This Row],[AE]]=\"\",\"ENVIO DA AUTODECLARAÇÃO DE ESCOLARIDADE E RAÇA PENDENTE; \",\"\")","v":"ENVIO DA AUTODECLARAÇÃO DE ESCOLARIDADE E RAÇA PENDENTE; "},{"$f":"IF(RPA_FUER[[#This Row],[AC/LC]]=\"\",\"ENVIO DA AUTODECLARAÇÃO DE CARGO PENDENTE; \",\"\")","v":"ENVIO DA AUTODECLARAÇÃO DE CARGO PENDENTE; "},{"$f":"IF(RPA_FUER[[#This Row],[REL]]=\"\",\"ENVIO DO RELATÓRIO PENDENTE. \",\"\")","v":"ENVIO DO RELATÓRIO PENDENTE. "},{"$f":"IF(AND(RPA_FUER[[#This Row],[FC]]=\"a\",RPA_FUER[[#This Row],[AE]]=\"a\",RPA_FUER[[#This Row],[AC/LC]]=\"a\",RPA_FUER[[#This Row],[REL]]=\"a\"),\"COLABORADOR APTO PARA PAGAMENTO\",\"\")","v":""},{"$f":"MONTH(RPA_FUER[[#This Row],[DATA FINAL]])","v":1}]
[null,null,null,null,null,null,null,{"$f":"IFERROR(RPA_FUER[[#This Row],[DIÁRIAS]]*RPA_FUER[[#This Row],[VALOR \nUNITARIO]],\" \")","v":0},{"$f":"IFERROR('CONTROLE DE COLABORADORES'!$H34*0.2,\"\")","v":0},{"$f":"IFERROR('CONTROLE DE COLABORADORES'!$H34+'CONTROLE DE COLABORADORES'!$I34,\"\")","v":0},null,null,null,null,null,null,{"$f":"IF(RPA_FUER[[#This Row],[Obs Final]]<>\"\",\"CONCLUIDO\",IF(OR(RPA_FUER[[#This Row],[MÊS ATUAL]]=MONTH(TODAY()),RPA_FUER[[#This Row],[MÊS ATUAL]]<MONTH(TODAY())),\"CONFERIR\",\"DENTRO DO PRAZO\"))","v":"CONFERIR"},{"$f":"IF(RPA_FUER[[#This Row],[FC]]=\"\",\"ENVIO DA FICHA CADASTRAL PENDENTE; \",\"\")","v":"ENVIO DA FICHA CADASTRAL PENDENTE; "},{"$f":"IF(RPA_FUER[[#This Row],[AE]]=\"\",\"ENVIO DA AUTODECLARAÇÃO DE ESCOLARIDADE E RAÇA PENDENTE; \",\"\")","v":"ENVIO DA AUTODECLARAÇÃO DE ESCOLARIDADE E RAÇA PENDENTE; "},{"$f":"IF(RPA_FUER[[#This Row],[AC/LC]]=\"\",\"ENVIO DA AUTODECLARAÇÃO DE CARGO PENDENTE; \",\"\")","v":"ENVIO DA AUTODECLARAÇÃO DE CARGO PENDENTE; "},{"$f":"IF(RPA_FUER[[#This Row],[REL]]=\"\",\"ENVIO DO RELATÓRIO PENDENTE. \",\"\")","v":"ENVIO DO RELATÓRIO PENDENTE. "},{"$f":"IF(AND(RPA_FUER[[#This Row],[FC]]=\"a\",RPA_FUER[[#This Row],[AE]]=\"a\",RPA_FUER[[#This Row],[AC/LC]]=\"a\",RPA_FUER[[#This Row],[REL]]=\"a\"),\"COLABORADOR APTO PARA PAGAMENTO\",\"\")","v":""},{"$f":"MONTH(RPA_FUER[[#This Row],[DATA FINAL]])","v":1}]
[null,null,null,null,null,null,null,{"$f":"IFERROR(RPA_FUER[[#This Row],[DIÁRIAS]]*RPA_FUER[[#This Row],[VALOR \nUNITARIO]],\" \")","v":0},{"$f":"IFERROR('CONTROLE DE COLABORADORES'!$H35*0.2,\"\")","v":0},{"$f":"IFERROR('CONTROLE DE COLABORADORES'!$H35+'CONTROLE DE COLABORADORES'!$I35,\"\")","v":0},null,null,null,null,null,null,{"$f":"IF(RPA_FUER[[#This Row],[Obs Final]]<>\"\",\"CONCLUIDO\",IF(OR(RPA_FUER[[#This Row],[MÊS ATUAL]]=MONTH(TODAY()),RPA_FUER[[#This Row],[MÊS ATUAL]]<MONTH(TODAY())),\"CONFERIR\",\"DENTRO DO PRAZO\"))","v":"CONFERIR"},{"$f":"IF(RPA_FUER[[#This Row],[FC]]=\"\",\"ENVIO DA FICHA CADASTRAL PENDENTE; \",\"\")","v":"ENVIO DA FICHA CADASTRAL PENDENTE; "},{"$f":"IF(RPA_FUER[[#This Row],[AE]]=\"\",\"ENVIO DA AUTODECLARAÇÃO DE ESCOLARIDADE E RAÇA PENDENTE; \",\"\")","v":"ENVIO DA AUTODECLARAÇÃO DE ESCOLARIDADE E RAÇA PENDENTE; "},{"$f":"IF(RPA_FUER[[#This Row],[AC/LC]]=\"\",\"ENVIO DA AUTODECLARAÇÃO DE CARGO PENDENTE; \",\"\")","v":"ENVIO DA AUTODECLARAÇÃO DE CARGO PENDENTE; "},{"$f":"IF(RPA_FUER[[#This Row],[REL]]=\"\",\"ENVIO DO RELATÓRIO PENDENTE. \",\"\")","v":"ENVIO DO RELATÓRIO PENDENTE. "},{"$f":"IF(AND(RPA_FUER[[#This Row],[FC]]=\"a\",RPA_FUER[[#This Row],[AE]]=\"a\",RPA_FUER[[#This Row],[AC/LC]]=\"a\",RPA_FUER[[#This Row],[REL]]=\"a\"),\"COLABORADOR APTO PARA PAGAMENTO\",\"\")","v":""},{"$f":"MONTH(RPA_FUER[[#This Row],[DATA FINAL]])","v":1}]
[null,null,null,null,null,null,null,{"$f":"IFERROR(RPA_FUER[[#This Row],[DIÁRIAS]]*RPA_FUER[[#This Row],[VALOR \nUNITARIO]],\" \")","v":0},{"$f":"IFERROR('CONTROLE DE COLABORADORES'!$H36*0.2,\"\")","v":0},{"$f":"IFERROR('CONTROLE DE COLABORADORES'!$H36+'CONTROLE DE COLABORADORES'!$I36,\"\")","v":0},null,null,null,null,null,null,{"$f":"IF(RPA_FUER[[#This Row],[Obs Final]]<>\"\",\"CONCLUIDO\",IF(OR(RPA_FUER[[#This Row],[MÊS ATUAL]]=MONTH(TODAY()),RPA_FUER[[#This Row],[MÊS ATUAL]]<MONTH(TODAY())),\"CONFERIR\",\"DENTRO DO PRAZO\"))","v":"CONFERIR"},{"$f":"IF(RPA_FUER[[#This Row],[FC]]=\"\",\"ENVIO DA FICHA CADASTRAL PENDENTE; \",\"\")","v":"ENVIO DA FICHA CADASTRAL PENDENTE; "},{"$f":"IF(RPA_FUER[[#This Row],[AE]]=\"\",\"ENVIO DA AUTODECLARAÇÃO DE ESCOLARIDADE E RAÇA PENDENTE; \",\"\")","v":"ENVIO DA AUTODECLARAÇÃO DE ESCOLARIDADE E RAÇA PENDENTE; "},{"$f":"IF(RPA_FUER[[#This Row],[AC/LC]]=\"\",\"ENVIO DA AUTODECLARAÇÃO DE CARGO PENDENTE; \",\"\")","v":"ENVIO DA AUTODECLARAÇÃO DE CARGO PENDENTE; "},{"$f":"IF(RPA_FUER[[#This Row],[REL]]=\"\",\"ENVIO DO RELATÓRIO PENDENTE. \",\"\")","v":"ENVIO DO RELATÓRIO PENDENTE. "},{"$f":"IF(AND(RPA_FUER[[#This Row],[FC]]=\"a\",RPA_FUER[[#This Row],[AE]]=\"a\",RPA_FUER[[#This Row],[AC/LC]]=\"a\",RPA_FUER[[#This Row],[REL]]=\"a\"),\"COLABORADOR APTO PARA PAGAMENTO\",\"\")","v":""},{"$f":"MONTH(RPA_FUER[[#This Row],[DATA FINAL]])","v":1}]
[null,null,null,null,null,null,null,{"$f":"IFERROR(RPA_FUER[[#This Row],[DIÁRIAS]]*RPA_FUER[[#This Row],[VALOR \nUNITARIO]],\" \")","v":0},{"$f":"IFERROR('CONTROLE DE COLABORADORES'!$H37*0.2,\"\")","v":0},{"$f":"IFERROR('CONTROLE DE COLABORADORES'!$H37+'CONTROLE DE COLABORADORES'!$I37,\"\")","v":0},null,null,null,null,null,null,{"$f":"IF(RPA_FUER[[#This Row],[Obs Final]]<>\"\",\"CONCLUIDO\",IF(OR(RPA_FUER[[#This Row],[MÊS ATUAL]]=MONTH(TODAY()),RPA_FUER[[#This Row],[MÊS ATUAL]]<MONTH(TODAY())),\"CONFERIR\",\"DENTRO DO PRAZO\"))","v":"CONFERIR"},{"$f":"IF(RPA_FUER[[#This Row],[FC]]=\"\",\"ENVIO DA FICHA CADASTRAL PENDENTE; \",\"\")","v":"ENVIO DA FICHA CADASTRAL PENDENTE; "},{"$f":"IF(RPA_FUER[[#This Row],[AE]]=\"\",\"ENVIO DA AUTODECLARAÇÃO DE ESCOLARIDADE E RAÇA PENDENTE; \",\"\")","v":"ENVIO DA AUTODECLARAÇÃO DE ESCOLARIDADE E RAÇA PENDENTE; "},{"$f":"IF(RPA_FUER[[#This Row],[AC/LC]]=\"\",\"ENVIO DA AUTODECLARAÇÃO DE CARGO PENDENTE; \",\"\")","v":"ENVIO DA AUTODECLARAÇÃO DE CARGO PENDENTE; "},{"$f":"IF(RPA_FUER[[#This Row],[REL]]=\"\",\"ENVIO DO RELATÓRIO PENDENTE. \",\"\")","v":"ENVIO DO RELATÓRIO PENDENTE. "},{"$f":"IF(AND(RPA_FUER[[#This Row],[FC]]=\"a\",RPA_FUER[[#This Row],[AE]]=\"a\",RPA_FUER[[#This Row],[AC/LC]]=\"a\",RPA_FUER[[#This Row],[REL]]=\"a\"),\"COLABORADOR APTO PARA PAGAMENTO\",\"\")","v":""},{"$f":"MONTH(RPA_FUER[[#This Row],[DATA FINAL]])","v":1}]
[null,null,null,null,null,null,null,{"$f":"IFERROR(RPA_FUER[[#This Row],[DIÁRIAS]]*RPA_FUER[[#This Row],[VALOR \nUNITARIO]],\" \")","v":0},{"$f":"IFERROR('CONTROLE DE COLABORADORES'!$H38*0.2,\"\")","v":0},{"$f":"IFERROR('CONTROLE DE COLABORADORES'!$H38+'CONTROLE DE COLABORADORES'!$I38,\"\")","v":0},null,null,null,null,null,null,{"$f":"IF(RPA_FUER[[#This Row],[Obs Final]]<>\"\",\"CONCLUIDO\",IF(OR(RPA_FUER[[#This Row],[MÊS ATUAL]]=MONTH(TODAY()),RPA_FUER[[#This Row],[MÊS ATUAL]]<MONTH(TODAY())),\"CONFERIR\",\"DENTRO DO PRAZO\"))","v":"CONFERIR"},{"$f":"IF(RPA_FUER[[#This Row],[FC]]=\"\",\"ENVIO DA FICHA CADASTRAL PENDENTE; \",\"\")","v":"ENVIO DA FICHA CADASTRAL PENDENTE; "},{"$f":"IF(RPA_FUER[[#This Row],[AE]]=\"\",\"ENVIO DA AUTODECLARAÇÃO DE ESCOLARIDADE E RAÇA PENDENTE; \",\"\")","v":"ENVIO DA AUTODECLARAÇÃO DE ESCOLARIDADE E RAÇA PENDENTE; "},{"$f":"IF(RPA_FUER[[#This Row],[AC/LC]]=\"\",\"ENVIO DA AUTODECLARAÇÃO DE CARGO PENDENTE; \",\"\")","v":"ENVIO DA AUTODECLARAÇÃO DE CARGO PENDENTE; "},{"$f":"IF(RPA_FUER[[#This Row],[REL]]=\"\",\"ENVIO DO RELATÓRIO PENDENTE. \",\"\")","v":"ENVIO DO RELATÓRIO PENDENTE. "},{"$f":"IF(AND(RPA_FUER[[#This Row],[FC]]=\"a\",RPA_FUER[[#This Row],[AE]]=\"a\",RPA_FUER[[#This Row],[AC/LC]]=\"a\",RPA_FUER[[#This Row],[REL]]=\"a\"),\"COLABORADOR APTO PARA PAGAMENTO\",\"\")","v":""},{"$f":"MONTH(RPA_FUER[[#This Row],[DATA FINAL]])","v":1}]
[null,null,null,null,null,null,null,{"$f":"IFERROR(RPA_FUER[[#This Row],[DIÁRIAS]]*RPA_FUER[[#This Row],[VALOR \nUNITARIO]],\" \")","v":0},{"$f":"IFERROR('CONTROLE DE COLABORADORES'!$H39*0.2,\"\")","v":0},{"$f":"IFERROR('CONTROLE DE COLABORADORES'!$H39+'CONTROLE DE COLABORADORES'!$I39,\"\")","v":0},null,null,null,null,null,null,{"$f":"IF(RPA_FUER[[#This Row],[Obs Final]]<>\"\",\"CONCLUIDO\",IF(OR(RPA_FUER[[#This Row],[MÊS ATUAL]]=MONTH(TODAY()),RPA_FUER[[#This Row],[MÊS ATUAL]]<MONTH(TODAY())),\"CONFERIR\",\"DENTRO DO PRAZO\"))","v":"CONFERIR"},{"$f":"IF(RPA_FUER[[#This Row],[FC]]=\"\",\"ENVIO DA FICHA CADASTRAL PENDENTE; \",\"\")","v":"ENVIO DA FICHA CADASTRAL PENDENTE; "},{"$f":"IF(RPA_FUER[[#This Row],[AE]]=\"\",\"ENVIO DA AUTODECLARAÇÃO DE ESCOLARIDADE E RAÇA PENDENTE; \",\"\")","v":"ENVIO DA AUTODECLARAÇÃO DE ESCOLARIDADE E RAÇA PENDENTE; "},{"$f":"IF(RPA_FUER[[#This Row],[AC/LC]]=\"\",\"ENVIO DA AUTODECLARAÇÃO DE CARGO PENDENTE; \",\"\")","v":"ENVIO DA AUTODECLARAÇÃO DE CARGO PENDENTE; "},{"$f":"IF(RPA_FUER[[#This Row],[REL]]=\"\",\"ENVIO DO RELATÓRIO PENDENTE. \",\"\")","v":"ENVIO DO RELATÓRIO PENDENTE. "},{"$f":"IF(AND(RPA_FUER[[#This Row],[FC]]=\"a\",RPA_FUER[[#This Row],[AE]]=\"a\",RPA_FUER[[#This Row],[AC/LC]]=\"a\",RPA_FUER[[#This Row],[REL]]=\"a\"),\"COLABORADOR APTO PARA PAGAMENTO\",\"\")","v":""},{"$f":"MONTH(RPA_FUER[[#This Row],[DATA FINAL]])","v":1}]
[null,null,null,null,null,null,null,{"$f":"IFERROR(RPA_FUER[[#This Row],[DIÁRIAS]]*RPA_FUER[[#This Row],[VALOR \nUNITARIO]],\" \")","v":0},{"$f":"IFERROR('CONTROLE DE COLABORADORES'!$H40*0.2,\"\")","v":0},{"$f":"IFERROR('CONTROLE DE COLABORADORES'!$H40+'CONTROLE DE COLABORADORES'!$I40,\"\")","v":0},null,null,null,null,null,null,{"$f":"IF(RPA_FUER[[#This Row],[Obs Final]]<>\"\",\"CONCLUIDO\",IF(OR(RPA_FUER[[#This Row],[MÊS ATUAL]]=MONTH(TODAY()),RPA_FUER[[#This Row],[MÊS ATUAL]]<MONTH(TODAY())),\"CONFERIR\",\"DENTRO DO PRAZO\"))","v":"CONFERIR"},{"$f":"IF(RPA_FUER[[#This Row],[FC]]=\"\",\"ENVIO DA FICHA CADASTRAL PENDENTE; \",\"\")","v":"ENVIO DA FICHA CADASTRAL PENDENTE; "},{"$f":"IF(RPA_FUER[[#This Row],[AE]]=\"\",\"ENVIO DA AUTODECLARAÇÃO DE ESCOLARIDADE E RAÇA PENDENTE; \",\"\")","v":"ENVIO DA AUTODECLARAÇÃO DE ESCOLARIDADE E RAÇA PENDENTE; "},{"$f":"IF(RPA_FUER[[#This Row],[AC/LC]]=\"\",\"ENVIO DA AUTODECLARAÇÃO DE CARGO PENDENTE; \",\"\")","v":"ENVIO DA AUTODECLARAÇÃO DE CARGO PENDENTE; "},{"$f":"IF(RPA_FUER[[#This Row],[REL]]=\"\",\"ENVIO DO RELATÓRIO PENDENTE. \",\"\")","v":"ENVIO DO RELATÓRIO PENDENTE. "},{"$f":"IF(AND(RPA_FUER[[#This Row],[FC]]=\"a\",RPA_FUER[[#This Row],[AE]]=\"a\",RPA_FUER[[#This Row],[AC/LC]]=\"a\",RPA_FUER[[#This Row],[REL]]=\"a\"),\"COLABORADOR APTO PARA PAGAMENTO\",\"\")","v":""},{"$f":"MONTH(RPA_FUER[[#This Row],[DATA FINAL]])","v":1}]
[null,null,null,null,null,null,null,{"$f":"IFERROR(RPA_FUER[[#This Row],[DIÁRIAS]]*RPA_FUER[[#This Row],[VALOR \nUNITARIO]],\" \")","v":0},{"$f":"IFERROR('CONTROLE DE COLABORADORES'!$H41*0.2,\"\")","v":0},{"$f":"IFERROR('CONTROLE DE COLABORADORES'!$H41+'CONTROLE DE COLABORADORES'!$I41,\"\")","v":0},null,null,null,null,null,null,{"$f":"IF(RPA_FUER[[#This Row],[Obs Final]]<>\"\",\"CONCLUIDO\",IF(OR(RPA_FUER[[#This Row],[MÊS ATUAL]]=MONTH(TODAY()),RPA_FUER[[#This Row],[MÊS ATUAL]]<MONTH(TODAY())),\"CONFERIR\",\"DENTRO DO PRAZO\"))","v":"CONFERIR"},{"$f":"IF(RPA_FUER[[#This Row],[FC]]=\"\",\"ENVIO DA FICHA CADASTRAL PENDENTE; \",\"\")","v":"ENVIO DA FICHA CADASTRAL PENDENTE; "},{"$f":"IF(RPA_FUER[[#This Row],[AE]]=\"\",\"ENVIO DA AUTODECLARAÇÃO DE ESCOLARIDADE E RAÇA PENDENTE; \",\"\")","v":"ENVIO DA AUTODECLARAÇÃO DE ESCOLARIDADE E RAÇA PENDENTE; "},{"$f":"IF(RPA_FUER[[#This Row],[AC/LC]]=\"\",\"ENVIO DA AUTODECLARAÇÃO DE CARGO PENDENTE; \",\"\")","v":"ENVIO DA AUTODECLARAÇÃO DE CARGO PENDENTE; "},{"$f":"IF(RPA_FUER[[#This Row],[REL]]=\"\",\"ENVIO DO RELATÓRIO PENDENTE. \",\"\")","v":"ENVIO DO RELATÓRIO PENDENTE. "},{"$f":"IF(AND(RPA_FUER[[#This Row],[FC]]=\"a\",RPA_FUER[[#This Row],[AE]]=\"a\",RPA_FUER[[#This Row],[AC/LC]]=\"a\",RPA_FUER[[#This Row],[REL]]=\"a\"),\"COLABORADOR APTO PARA PAGAMENTO\",\"\")","v":""},{"$f":"MONTH(RPA_FUER[[#This Row],[DATA FINAL]])","v":1}]
[null,null,null,null,null,null,null,{"$f":"IFERROR(RPA_FUER[[#This Row],[DIÁRIAS]]*RPA_FUER[[#This Row],[VALOR \nUNITARIO]],\" \")","v":0},{"$f":"IFERROR('CONTROLE DE COLABORADORES'!$H42*0.2,\"\")","v":0},{"$f":"IFERROR('CONTROLE DE COLABORADORES'!$H42+'CONTROLE DE COLABORADORES'!$I42,\"\")","v":0},null,null,null,null,null,null,{"$f":"IF(RPA_FUER[[#This Row],[Obs Final]]<>\"\",\"CONCLUIDO\",IF(OR(RPA_FUER[[#This Row],[MÊS ATUAL]]=MONTH(TODAY()),RPA_FUER[[#This Row],[MÊS ATUAL]]<MONTH(TODAY())),\"CONFERIR\",\"DENTRO DO PRAZO\"))","v":"CONFERIR"},{"$f":"IF(RPA_FUER[[#This Row],[FC]]=\"\",\"ENVIO DA FICHA CADASTRAL PENDENTE; \",\"\")","v":"ENVIO DA FICHA CADASTRAL PENDENTE; "},{"$f":"IF(RPA_FUER[[#This Row],[AE]]=\"\",\"ENVIO DA AUTODECLARAÇÃO DE ESCOLARIDADE E RAÇA PENDENTE; \",\"\")","v":"ENVIO DA AUTODECLARAÇÃO DE ESCOLARIDADE E RAÇA PENDENTE; "},{"$f":"IF(RPA_FUER[[#This Row],[AC/LC]]=\"\",\"ENVIO DA AUTODECLARAÇÃO DE CARGO PENDENTE; \",\"\")","v":"ENVIO DA AUTODECLARAÇÃO DE CARGO PENDENTE; "},{"$f":"IF(RPA_FUER[[#This Row],[REL]]=\"\",\"ENVIO DO RELATÓRIO PENDENTE. \",\"\")","v":"ENVIO DO RELATÓRIO PENDENTE. "},{"$f":"IF(AND(RPA_FUER[[#This Row],[FC]]=\"a\",RPA_FUER[[#This Row],[AE]]=\"a\",RPA_FUER[[#This Row],[AC/LC]]=\"a\",RPA_FUER[[#This Row],[REL]]=\"a\"),\"COLABORADOR APTO PARA PAGAMENTO\",\"\")","v":""},{"$f":"MONTH(RPA_FUER[[#This Row],[DATA FINAL]])","v":1}]
[null,null,null,null,null,null,null,{"$f":"IFERROR(RPA_FUER[[#This Row],[DIÁRIAS]]*RPA_FUER[[#This Row],[VALOR \nUNITARIO]],\" \")","v":0},{"$f":"IFERROR('CONTROLE DE COLABORADORES'!$H43*0.2,\"\")","v":0},{"$f":"IFERROR('CONTROLE DE COLABORADORES'!$H43+'CONTROLE DE COLABORADORES'!$I43,\"\")","v":0},null,null,null,null,null,null,{"$f":"IF(RPA_FUER[[#This Row],[Obs Final]]<>\"\",\"CONCLUIDO\",IF(OR(RPA_FUER[[#This Row],[MÊS ATUAL]]=MONTH(TODAY()),RPA_FUER[[#This Row],[MÊS ATUAL]]<MONTH(TODAY())),\"CONFERIR\",\"DENTRO DO PRAZO\"))","v":"CONFERIR"},{"$f":"IF(RPA_FUER[[#This Row],[FC]]=\"\",\"ENVIO DA FICHA CADASTRAL PENDENTE; \",\"\")","v":"ENVIO DA FICHA CADASTRAL PENDENTE; "},{"$f":"IF(RPA_FUER[[#This Row],[AE]]=\"\",\"ENVIO DA AUTODECLARAÇÃO DE ESCOLARIDADE E RAÇA PENDENTE; \",\"\")","v":"ENVIO DA AUTODECLARAÇÃO DE ESCOLARIDADE E RAÇA PENDENTE; "},{"$f":"IF(RPA_FUER[[#This Row],[AC/LC]]=\"\",\"ENVIO DA AUTODECLARAÇÃO DE CARGO PENDENTE; \",\"\")","v":"ENVIO DA AUTODECLARAÇÃO DE CARGO PENDENTE; "},{"$f":"IF(RPA_FUER[[#This Row],[REL]]=\"\",\"ENVIO DO RELATÓRIO PENDENTE. \",\"\")","v":"ENVIO DO RELATÓRIO PENDENTE. "},{"$f":"IF(AND(RPA_FUER[[#This Row],[FC]]=\"a\",RPA_FUER[[#This Row],[AE]]=\"a\",RPA_FUER[[#This Row],[AC/LC]]=\"a\",RPA_FUER[[#This Row],[REL]]=\"a\"),\"COLABORADOR APTO PARA PAGAMENTO\",\"\")","v":""},{"$f":"MONTH(RPA_FUER[[#This Row],[DATA FINAL]])","v":1}]
[null,null,null,null,null,null,null,{"$f":"IFERROR(RPA_FUER[[#This Row],[DIÁRIAS]]*RPA_FUER[[#This Row],[VALOR \nUNITARIO]],\" \")","v":0},{"$f":"IFERROR('CONTROLE DE COLABORADORES'!$H44*0.2,\"\")","v":0},{"$f":"IFERROR('CONTROLE DE COLABORADORES'!$H44+'CONTROLE DE COLABORADORES'!$I44,\"\")","v":0},null,null,null,null,null,null,{"$f":"IF(RPA_FUER[[#This Row],[Obs Final]]<>\"\",\"CONCLUIDO\",IF(OR(RPA_FUER[[#This Row],[MÊS ATUAL]]=MONTH(TODAY()),RPA_FUER[[#This Row],[MÊS ATUAL]]<MONTH(TODAY())),\"CONFERIR\",\"DENTRO DO PRAZO\"))","v":"CONFERIR"},{"$f":"IF(RPA_FUER[[#This Row],[FC]]=\"\",\"ENVIO DA FICHA CADASTRAL PENDENTE; \",\"\")","v":"ENVIO DA FICHA CADASTRAL PENDENTE; "},{"$f":"IF(RPA_FUER[[#This Row],[AE]]=\"\",\"ENVIO DA AUTODECLARAÇÃO DE ESCOLARIDADE E RAÇA PENDENTE; \",\"\")","v":"ENVIO DA AUTODECLARAÇÃO DE ESCOLARIDADE E RAÇA PENDENTE; "},{"$f":"IF(RPA_FUER[[#This Row],[AC/LC]]=\"\",\"ENVIO DA AUTODECLARAÇÃO DE CARGO PENDENTE; \",\"\")","v":"ENVIO DA AUTODECLARAÇÃO DE CARGO PENDENTE; "},{"$f":"IF(RPA_FUER[[#This Row],[REL]]=\"\",\"ENVIO DO RELATÓRIO PENDENTE. \",\"\")","v":"ENVIO DO RELATÓRIO PENDENTE. "},{"$f":"IF(AND(RPA_FUER[[#This Row],[FC]]=\"a\",RPA_FUER[[#This Row],[AE]]=\"a\",RPA_FUER[[#This Row],[AC/LC]]=\"a\",RPA_FUER[[#This Row],[REL]]=\"a\"),\"COLABORADOR APTO PARA PAGAMENTO\",\"\")","v":""},{"$f":"MONTH(RPA_FUER[[#This Row],[DATA FINAL]])","v":1}]
[null,null,null,null,null,null,null,{"$f":"IFERROR(RPA_FUER[[#This Row],[DIÁRIAS]]*RPA_FUER[[#This Row],[VALOR \nUNITARIO]],\" \")","v":0},{"$f":"IFERROR('CONTROLE DE COLABORADORES'!$H45*0.2,\"\")","v":0},{"$f":"IFERROR('CONTROLE DE COLABORADORES'!$H45+'CONTROLE DE COLABORADORES'!$I45,\"\")","v":0},null,null,null,null,null,null,{"$f":"IF(RPA_FUER[[#This Row],[Obs Final]]<>\"\",\"CONCLUIDO\",IF(OR(RPA_FUER[[#This Row],[MÊS ATUAL]]=MONTH(TODAY()),RPA_FUER[[#This Row],[MÊS ATUAL]]<MONTH(TODAY())),\"CONFERIR\",\"DENTRO DO PRAZO\"))","v":"CONFERIR"},{"$f":"IF(RPA_FUER[[#This Row],[FC]]=\"\",\"ENVIO DA FICHA CADASTRAL PENDENTE; \",\"\")","v":"ENVIO DA FICHA CADASTRAL PENDENTE; "},{"$f":"IF(RPA_FUER[[#This Row],[AE]]=\"\",\"ENVIO DA AUTODECLARAÇÃO DE ESCOLARIDADE E RAÇA PENDENTE; \",\"\")","v":"ENVIO DA AUTODECLARAÇÃO DE ESCOLARIDADE E RAÇA PENDENTE; "},{"$f":"IF(RPA_FUER[[#This Row],[AC/LC]]=\"\",\"ENVIO DA AUTODECLARAÇÃO DE CARGO PENDENTE; \",\"\")","v":"ENVIO DA AUTODECLARAÇÃO DE CARGO PENDENTE; "},{"$f":"IF(RPA_FUER[[#This Row],[REL]]=\"\",\"ENVIO DO RELATÓRIO PENDENTE. \",\"\")","v":"ENVIO DO RELATÓRIO PENDENTE. "},{"$f":"IF(AND(RPA_FUER[[#This Row],[FC]]=\"a\",RPA_FUER[[#This Row],[AE]]=\"a\",RPA_FUER[[#This Row],[AC/LC]]=\"a\",RPA_FUER[[#This Row],[REL]]=\"a\"),\"COLABORADOR APTO PARA PAGAMENTO\",\"\")","v":""},{"$f":"MONTH(RPA_FUER[[#This Row],[DATA FINAL]])","v":1}]
[null,null,null,null,null,null,null,{"$f":"IFERROR(RPA_FUER[[#This Row],[DIÁRIAS]]*RPA_FUER[[#This Row],[VALOR \nUNITARIO]],\" \")","v":0},{"$f":"IFERROR('CONTROLE DE COLABORADORES'!$H46*0.2,\"\")","v":0},{"$f":"IFERROR('CONTROLE DE COLABORADORES'!$H46+'CONTROLE DE COLABORADORES'!$I46,\"\")","v":0},null,null,null,null,null,null,{"$f":"IF(RPA_FUER[[#This Row],[Obs Final]]<>\"\",\"CONCLUIDO\",IF(OR(RPA_FUER[[#This Row],[MÊS ATUAL]]=MONTH(TODAY()),RPA_FUER[[#This Row],[MÊS ATUAL]]<MONTH(TODAY())),\"CONFERIR\",\"DENTRO DO PRAZO\"))","v":"CONFERIR"},{"$f":"IF(RPA_FUER[[#This Row],[FC]]=\"\",\"ENVIO DA FICHA CADASTRAL PENDENTE; \",\"\")","v":"ENVIO DA FICHA CADASTRAL PENDENTE; "},{"$f":"IF(RPA_FUER[[#This Row],[AE]]=\"\",\"ENVIO DA AUTODECLARAÇÃO DE ESCOLARIDADE E RAÇA PENDENTE; \",\"\")","v":"ENVIO DA AUTODECLARAÇÃO DE ESCOLARIDADE E RAÇA PENDENTE; "},{"$f":"IF(RPA_FUER[[#This Row],[AC/LC]]=\"\",\"ENVIO DA AUTODECLARAÇÃO DE CARGO PENDENTE; \",\"\")","v":"ENVIO DA AUTODECLARAÇÃO DE CARGO PENDENTE; "},{"$f":"IF(RPA_FUER[[#This Row],[REL]]=\"\",\"ENVIO DO RELATÓRIO PENDENTE. \",\"\")","v":"ENVIO DO RELATÓRIO PENDENTE. "},{"$f":"IF(AND(RPA_FUER[[#This Row],[FC]]=\"a\",RPA_FUER[[#This Row],[AE]]=\"a\",RPA_FUER[[#This Row],[AC/LC]]=\"a\",RPA_FUER[[#This Row],[REL]]=\"a\"),\"COLABORADOR APTO PARA PAGAMENTO\",\"\")","v":""},{"$f":"MONTH(RPA_FUER[[#This Row],[DATA FINAL]])","v":1}]
[null,null,null,null,null,null,null,{"$f":"IFERROR(RPA_FUER[[#This Row],[DIÁRIAS]]*RPA_FUER[[#This Row],[VALOR \nUNITARIO]],\" \")","v":0},{"$f":"IFERROR('CONTROLE DE COLABORADORES'!$H47*0.2,\"\")","v":0},{"$f":"IFERROR('CONTROLE DE COLABORADORES'!$H47+'CONTROLE DE COLABORADORES'!$I47,\"\")","v":0},null,null,null,null,null,null,{"$f":"IF(RPA_FUER[[#This Row],[Obs Final]]<>\"\",\"CONCLUIDO\",IF(OR(RPA_FUER[[#This Row],[MÊS ATUAL]]=MONTH(TODAY()),RPA_FUER[[#This Row],[MÊS ATUAL]]<MONTH(TODAY())),\"CONFERIR\",\"DENTRO DO PRAZO\"))","v":"CONFERIR"},{"$f":"IF(RPA_FUER[[#This Row],[FC]]=\"\",\"ENVIO DA FICHA CADASTRAL PENDENTE; \",\"\")","v":"ENVIO DA FICHA CADASTRAL PENDENTE; "},{"$f":"IF(RPA_FUER[[#This Row],[AE]]=\"\",\"ENVIO DA AUTODECLARAÇÃO DE ESCOLARIDADE E RAÇA PENDENTE; \",\"\")","v":"ENVIO DA AUTODECLARAÇÃO DE ESCOLARIDADE E RAÇA PENDENTE; "},{"$f":"IF(RPA_FUER[[#This Row],[AC/LC]]=\"\",\"ENVIO DA AUTODECLARAÇÃO DE CARGO PENDENTE; \",\"\")","v":"ENVIO DA AUTODECLARAÇÃO DE CARGO PENDENTE; "},{"$f":"IF(RPA_FUER[[#This Row],[REL]]=\"\",\"ENVIO DO RELATÓRIO PENDENTE. \",\"\")","v":"ENVIO DO RELATÓRIO PENDENTE. "},{"$f":"IF(AND(RPA_FUER[[#This Row],[FC]]=\"a\",RPA_FUER[[#This Row],[AE]]=\"a\",RPA_FUER[[#This Row],[AC/LC]]=\"a\",RPA_FUER[[#This Row],[REL]]=\"a\"),\"COLABORADOR APTO PARA PAGAMENTO\",\"\")","v":""},{"$f":"MONTH(RPA_FUER[[#This Row],[DATA FINAL]])","v":1}]
[null,null,null,null,null,null,null,{"$f":"IFERROR(RPA_FUER[[#This Row],[DIÁRIAS]]*RPA_FUER[[#This Row],[VALOR \nUNITARIO]],\" \")","v":0},{"$f":"IFERROR('CONTROLE DE COLABORADORES'!$H48*0.2,\"\")","v":0},{"$f":"IFERROR('CONTROLE DE COLABORADORES'!$H48+'CONTROLE DE COLABORADORES'!$I48,\"\")","v":0},null,null,null,null,null,null,{"$f":"IF(RPA_FUER[[#This Row],[Obs Final]]<>\"\",\"CONCLUIDO\",IF(OR(RPA_FUER[[#This Row],[MÊS ATUAL]]=MONTH(TODAY()),RPA_FUER[[#This Row],[MÊS ATUAL]]<MONTH(TODAY())),\"CONFERIR\",\"DENTRO DO PRAZO\"))","v":"CONFERIR"},{"$f":"IF(RPA_FUER[[#This Row],[FC]]=\"\",\"ENVIO DA FICHA CADASTRAL PENDENTE; \",\"\")","v":"ENVIO DA FICHA CADASTRAL PENDENTE; "},{"$f":"IF(RPA_FUER[[#This Row],[AE]]=\"\",\"ENVIO DA AUTODECLARAÇÃO DE ESCOLARIDADE E RAÇA PENDENTE; \",\"\")","v":"ENVIO DA AUTODECLARAÇÃO DE ESCOLARIDADE E RAÇA PENDENTE; "},{"$f":"IF(RPA_FUER[[#This Row],[AC/LC]]=\"\",\"ENVIO DA AUTODECLARAÇÃO DE CARGO PENDENTE; \",\"\")","v":"ENVIO DA AUTODECLARAÇÃO DE CARGO PENDENTE; "},{"$f":"IF(RPA_FUER[[#This Row],[REL]]=\"\",\"ENVIO DO RELATÓRIO PENDENTE. \",\"\")","v":"ENVIO DO RELATÓRIO PENDENTE. "},{"$f":"IF(AND(RPA_FUER[[#This Row],[FC]]=\"a\",RPA_FUER[[#This Row],[AE]]=\"a\",RPA_FUER[[#This Row],[AC/LC]]=\"a\",RPA_FUER[[#This Row],[REL]]=\"a\"),\"COLABORADOR APTO PARA PAGAMENTO\",\"\")","v":""},{"$f":"MONTH(RPA_FUER[[#This Row],[DATA FINAL]])","v":1}]
[null,null,null,null,null,null,null,{"$f":"IFERROR(RPA_FUER[[#This Row],[DIÁRIAS]]*RPA_FUER[[#This Row],[VALOR \nUNITARIO]],\" \")","v":0},{"$f":"IFERROR('CONTROLE DE COLABORADORES'!$H49*0.2,\"\")","v":0},{"$f":"IFERROR('CONTROLE DE COLABORADORES'!$H49+'CONTROLE DE COLABORADORES'!$I49,\"\")","v":0},null,null,null,null,null,null,{"$f":"IF(RPA_FUER[[#This Row],[Obs Final]]<>\"\",\"CONCLUIDO\",IF(OR(RPA_FUER[[#This Row],[MÊS ATUAL]]=MONTH(TODAY()),RPA_FUER[[#This Row],[MÊS ATUAL]]<MONTH(TODAY())),\"CONFERIR\",\"DENTRO DO PRAZO\"))","v":"CONFERIR"},{"$f":"IF(RPA_FUER[[#This Row],[FC]]=\"\",\"ENVIO DA FICHA CADASTRAL PENDENTE; \",\"\")","v":"ENVIO DA FICHA CADASTRAL PENDENTE; "},{"$f":"IF(RPA_FUER[[#This Row],[AE]]=\"\",\"ENVIO DA AUTODECLARAÇÃO DE ESCOLARIDADE E RAÇA PENDENTE; \",\"\")","v":"ENVIO DA AUTODECLARAÇÃO DE ESCOLARIDADE E RAÇA PENDENTE; "},{"$f":"IF(RPA_FUER[[#This Row],[AC/LC]]=\"\",\"ENVIO DA AUTODECLARAÇÃO DE CARGO PENDENTE; \",\"\")","v":"ENVIO DA AUTODECLARAÇÃO DE CARGO PENDENTE; "},{"$f":"IF(RPA_FUER[[#This Row],[REL]]=\"\",\"ENVIO DO RELATÓRIO PENDENTE. \",\"\")","v":"ENVIO DO RELATÓRIO PENDENTE. "},{"$f":"IF(AND(RPA_FUER[[#This Row],[FC]]=\"a\",RPA_FUER[[#This Row],[AE]]=\"a\",RPA_FUER[[#This Row],[AC/LC]]=\"a\",RPA_FUER[[#This Row],[REL]]=\"a\"),\"COLABORADOR APTO PARA PAGAMENTO\",\"\")","v":""},{"$f":"MONTH(RPA_FUER[[#This Row],[DATA FINAL]])","v":1}]
[null,null,null,null,null,null,null,{"$f":"IFERROR(RPA_FUER[[#This Row],[DIÁRIAS]]*RPA_FUER[[#This Row],[VALOR \nUNITARIO]],\" \")","v":0},{"$f":"IFERROR('CONTROLE DE COLABORADORES'!$H50*0.2,\"\")","v":0},{"$f":"IFERROR('CONTROLE DE COLABORADORES'!$H50+'CONTROLE DE COLABORADORES'!$I50,\"\")","v":0},null,null,null,null,null,null,{"$f":"IF(RPA_FUER[[#This Row],[Obs Final]]<>\"\",\"CONCLUIDO\",IF(OR(RPA_FUER[[#This Row],[MÊS ATUAL]]=MONTH(TODAY()),RPA_FUER[[#This Row],[MÊS ATUAL]]<MONTH(TODAY())),\"CONFERIR\",\"DENTRO DO PRAZO\"))","v":"CONFERIR"},{"$f":"IF(RPA_FUER[[#This Row],[FC]]=\"\",\"ENVIO DA FICHA CADASTRAL PENDENTE; \",\"\")","v":"ENVIO DA FICHA CADASTRAL PENDENTE; "},{"$f":"IF(RPA_FUER[[#This Row],[AE]]=\"\",\"ENVIO DA AUTODECLARAÇÃO DE ESCOLARIDADE E RAÇA PENDENTE; \",\"\")","v":"ENVIO DA AUTODECLARAÇÃO DE ESCOLARIDADE E RAÇA PENDENTE; "},{"$f":"IF(RPA_FUER[[#This Row],[AC/LC]]=\"\",\"ENVIO DA AUTODECLARAÇÃO DE CARGO PENDENTE; \",\"\")","v":"ENVIO DA AUTODECLARAÇÃO DE CARGO PENDENTE; "},{"$f":"IF(RPA_FUER[[#This Row],[REL]]=\"\",\"ENVIO DO RELATÓRIO PENDENTE. \",\"\")","v":"ENVIO DO RELATÓRIO PENDENTE. "},{"$f":"IF(AND(RPA_FUER[[#This Row],[FC]]=\"a\",RPA_FUER[[#This Row],[AE]]=\"a\",RPA_FUER[[#This Row],[AC/LC]]=\"a\",RPA_FUER[[#This Row],[REL]]=\"a\"),\"COLABORADOR APTO PARA PAGAMENTO\",\"\")","v":""},{"$f":"MONTH(RPA_FUER[[#This Row],[DATA FINAL]])","v":1}]
[null,null,null,null,null,null,null,{"$f":"IFERROR(RPA_FUER[[#This Row],[DIÁRIAS]]*RPA_FUER[[#This Row],[VALOR \nUNITARIO]],\" \")","v":0},{"$f":"IFERROR('CONTROLE DE COLABORADORES'!$H51*0.2,\"\")","v":0},{"$f":"IFERROR('CONTROLE DE COLABORADORES'!$H51+'CONTROLE DE COLABORADORES'!$I51,\"\")","v":0},null,null,null,null,null,null,{"$f":"IF(RPA_FUER[[#This Row],[Obs Final]]<>\"\",\"CONCLUIDO\",IF(OR(RPA_FUER[[#This Row],[MÊS ATUAL]]=MONTH(TODAY()),RPA_FUER[[#This Row],[MÊS ATUAL]]<MONTH(TODAY())),\"CONFERIR\",\"DENTRO DO PRAZO\"))","v":"CONFERIR"},{"$f":"IF(RPA_FUER[[#This Row],[FC]]=\"\",\"ENVIO DA FICHA CADASTRAL PENDENTE; \",\"\")","v":"ENVIO DA FICHA CADASTRAL PENDENTE; "},{"$f":"IF(RPA_FUER[[#This Row],[AE]]=\"\",\"ENVIO DA AUTODECLARAÇÃO DE ESCOLARIDADE E RAÇA PENDENTE; \",\"\")","v":"ENVIO DA AUTODECLARAÇÃO DE ESCOLARIDADE E RAÇA PENDENTE; "},{"$f":"IF(RPA_FUER[[#This Row],[AC/LC]]=\"\",\"ENVIO DA AUTODECLARAÇÃO DE CARGO PENDENTE; \",\"\")","v":"ENVIO DA AUTODECLARAÇÃO DE CARGO PENDENTE; "},{"$f":"IF(RPA_FUER[[#This Row],[REL]]=\"\",\"ENVIO DO RELATÓRIO PENDENTE. \",\"\")","v":"ENVIO DO RELATÓRIO PENDENTE. "},{"$f":"IF(AND(RPA_FUER[[#This Row],[FC]]=\"a\",RPA_FUER[[#This Row],[AE]]=\"a\",RPA_FUER[[#This Row],[AC/LC]]=\"a\",RPA_FUER[[#This Row],[REL]]=\"a\"),\"COLABORADOR APTO PARA PAGAMENTO\",\"\")","v":""},{"$f":"MONTH(RPA_FUER[[#This Row],[DATA FINAL]])","v":1}]
["Total",{"$f":"COUNTA(_xlfn.UNIQUE(RPA_FUER[CPF]))","v":1},null,null,null,null,null,{"$f":"SUBTOTAL(109,RPA_FUER[VALOR BRUTO DO PRESTADOR])","v":0},{"$f":"SUBTOTAL(109,RPA_FUER[CUSTO DE 20% - INSS PATRONAL])","v":0},{"$f":"SUBTOTAL(109,RPA_FUER[CUSTO DO PRESTADOR PARA A FEDERAÇÃO])","v":0},{"$f":"SUBTOTAL(103,RPA_FUER[MODALIDADE])","v":0}]

{"sheet":"CONTROLE DE MATERIAL","index":1,"n_rows":53,"n_cols":8,"rows_kept":53,"cut":false,"hidden":false,"merged":[]}
["ITEM","DESCRIÇÃO","DATA UTILIZAÇÃO","QTD","VALOR UNIT","VALOR TOTAL","TAMANHO","STATUS"]
[]
[]
[]
[]
[]
[]
[]
[]
[]
[]
[]
[]
[]
[]
[]
[]
[]
[]
[]
[]
[]
[]
[]
[]
[]
[]
[]
[]
[]
[]
[]
[]
[]
[]
[]
[]
[]
[]
[]
[]
[]
[]
[]
[]
[]
[]
[]
[]
[]
[]
[]
[null,null,null,{"$f":"SUBTOTAL(109,TABELAMATERIAIS[QTD])","v":0},null,{"$f":"SUBTOTAL(109,TABELAMATERIAIS[VALOR TOTAL])","v":0},null,{"$f":"SUBTOTAL(103,TABELAMATERIAIS[STATUS])","v":0}]